Workbook

Sheet Caloriewijzer
B2: CALORIE AFSCHRIJVINGSSCHEMA
B4: =IFERROR(CONCATENATE("NOG SLECHTS ",DATEDIF(Begindatum,Streefdatum,"m")," MAANDEN EN ", DATEDIF(Begindatum,Streefdatum,"md"),Dagnr),"") -> NOG SLECHTS 3 MAANDEN EN 15 DAGEN | H4: =IF(Doelgewicht="AFNEEMT","U wordt afgeraden om minder dan 1000 calorieën onder uw dagelijkse caloriebehoefte of minder dan " & IF(Geslacht="VROUWELIJK","1200 calorieën per dag in te nemen.","1800 calorieën per dag in te nemen."),"") -> U wordt afgeraden om minder dan 1000 calorieën onder uw dagelijkse caloriebehoefte of minder dan 1200 calorieën per dag in te nemen.
B5: =IF(OngeldigDoel,"ONGELDIG DOELGEWICHT. CONTROLEER DE INVOER.",IF(OR(Aanhouden,OngeldigDoel),""," TOTDAT U UW DOEL BEREIKT")) -> TOTDAT U UW DOEL BEREIKT | H5: =IF(OR(Aanhouden,OngeldigDoel),"",CONCATENATE("De streefdatum is gebaseerd op het aanbevolen gemiddelde gewichts ",IF(Doelgewicht="AFNEEMT","verlies van ","toename van "),IF(Eenheid="IMPERIAL","0,5 kg per week.",".45 kg per week."))) -> De streefdatum is gebaseerd op het aanbevolen gemiddelde gewichts verlies van 0,5 kg per week.
B6: ACTIVITEITENNIVEAU | H6: MAATEENHEID | J6: HUIDIG GEWICHT | L6: LEEFTIJD
B7: GEMIDDELDE ACTIVITEIT | E7: =VLOOKUP(Niveau,Bewegingssoorten[],2,FALSE) -> OEFENINGEN 3-5 DAGEN/WEEK | H7: IMPERIAL | J7: 150.0 | L7: 34
B8: IK WIL DAT MIJN GEWICHT | H8: =IF(Standaard,"HOOGTE IN FT","HOOGTE IN M") -> HOOGTE IN FT | I8: =IF(Standaard,"INCHES","CENTIMETERS") -> INCHES | J8: DOELGEWICHT | L8: GESLACHT
B9: AFNEEMT | H9: 5 | I9: 5.0 | J9: 135.0 | L9: VROUWELIJK
B10: BEGINDATUM VAN DOEL | E10: STREEFDATUM VAN DOEL | H10: EERSTE DAGELIJKSE COLORIEBEHOEFTEN | J10: EERSTE DAGELIJKSE CALORIE-INNAME | L10: =IF(Doelgewicht="Toename","EXTRA BENODIGDE CALORIEËN","TE VERBRANDEN CALORIEËN") -> TE VERBRANDEN CALORIEËN
B11: =TODAY()-5 -> 2024-04-12 | E11: =IF(Doelgewicht="Aanhouden","",IF(AND(AllesIngevuld,B14<>""),MAX(B13:B1000),"De streefdatum mag niet vóór de begindatum liggen. Controleer uw invoer.")) -> 2024-07-27 | H11: =IF(AllesIngevuld,BMR*Activiteitsfactor,"") -> 2252 | J11: =IF(AllesIngevuld,BMR*Activiteitsfactor+IF(Doelgewicht="Aanhouden",0,IF(Doelgewicht="Afneemt",-500,IF(Doelgewicht="Toename",500))),"") -> 1752 | L11: =IF(OR(Aanhouden,OngeldigDoel),"",(Gewichtsverandering)*IF(Standaard,1,2.2)*3500) -> 52500
B12: DATUM | C12: WEEK | D12: DAG | E12: GEWICHT | F12: BMR | G12: GECONSUMEERDE CAL | H12: CAL VERBRAND | I12: =IF(Doelgewicht="Afneemt", "EXTRA CAL","CAL-TEKORT") -> EXTRA CAL | J12: CAL RESTEREND | K12: =IF(Eenheid="IMPERIAL","RESTERENDE LBS","RESTERENDE KG") -> RESTERENDE LBS | L12: =IF(Doelgewicht="Afneemt","TOENAME","VERLIES") -> TOENAME | M12: % VAN DOEL
B13: =IFERROR(IF(OR(Aanhouden,OngeldigDoel),"",Begindatum), "") -> 2024-04-12 | C13: =IFERROR(IF(OR(Aanhouden,OngeldigDoel),"",1), "") -> 1 | D13: =IFERROR(IF(AND(ISNUMBER(J13),J13>0),1,""), "") -> 1 | E13: =IFERROR(IF(OR(Aanhouden,OngeldigDoel),"",Gewicht), "") -> 150.0 | F13: =IFERROR(IF(OR(Aanhouden,OngeldigDoel),"",IF(E13>0,LopendeBMR,"")), "") -> 1453 | G13: =IFERROR(IF(OR(Aanhouden,OngeldigDoel),"",InitCalConsumptie), "") -> 1752 | H13: =IFERROR(F13*(Activiteitsfactor),"") -> 2252 | I13: =IFERROR(IF(Doelgewicht="TOENAME",G13-H13,H13-G13),"") -> 500 | J13: =IFERROR(L11, "") -> 52500 | K13: =IFERROR(IF(Standaard,J13/CalPerPond,J13/CalPerPond/2.2),"") -> 15.0 | L13: =IFERROR(Gewichtsverandering-K13,"") -> 0.00 | M13: =IFERROR(IF(OR(Aanhouden,OngeldigDoel),"",0%), "") -> 0%
B14: =IFERROR(IF(K13>0,B13+1,""),"") -> 2024-04-13 | C14: =IFERROR(IF(D14<>"",IF(MOD(D14,7)=1,(D13/7)+1,""),""),"") ->  | D14: =IFERROR(IF(K13>0,D13+1,""),"") -> 2 | E14: =IFERROR(IF($D14<>"",E13+(I13/CalPerPond)*IF(Doelgewicht="TOENAME",1,-1),""),"") -> 149.9 | F14: =IFERROR(LopendeBMR,"") -> 1453 | G14: =IFERROR(IF(K13>0,F13*Activiteitsfactor+IF(Doelgewicht="Aanhouden",0,IF(Doelgewicht="AFNEEMT",-500,IF(Doelgewicht="TOENAME",500))),""),"") -> 1752 | H14: =IFERROR(F14*(Activiteitsfactor),"") -> 2251 | I14: =IFERROR(IF(Doelgewicht="TOENAME",G14-H14,H14-G14),"") -> 499 | J14: =IFERROR(J13-I14,"") -> 52001 | K14: =IFERROR(IF(Standaard,J14/CalPerPond,J14/CalPerPond/2.2),"") -> 14.9 | L14: =IFERROR(Gewichtsverandering-K14,"") -> 0.14 | M14: =IFERROR(IF(B13<>"",L14/(Gewichtsverandering),""),"") -> 1%
B15: 2024-04-14 | C15: =IFERROR(IF(D15<>"",IF(MOD(D15,7)=1,(D14/7)+1,""),""),"") ->  | D15: 3 | E15: =IFERROR(IF($D15<>"",E14+(I14/CalPerPond)*IF(Doelgewicht="TOENAME",1,-1),""),"") -> 149.7 | F15: =IFERROR(LopendeBMR,"") -> 1452 | G15: =IFERROR(IF(K14>0,F14*Activiteitsfactor+IF(Doelgewicht="Aanhouden",0,IF(Doelgewicht="AFNEEMT",-500,IF(Doelgewicht="TOENAME",500))),""),"") -> 1751 | H15: =IFERROR(F15*(Activiteitsfactor),"") -> 2251 | I15: =IFERROR(IF(Doelgewicht="TOENAME",G15-H15,H15-G15),"") -> 499 | J15: =IFERROR(J14-I15,"") -> 51502 | K15: =IFERROR(IF(Standaard,J15/CalPerPond,J15/CalPerPond/2.2),"") -> 14.7 | L15: =IFERROR(Gewichtsverandering-K15,"") -> 0.29 | M15: =IFERROR(IF(B14<>"",L15/(Gewichtsverandering),""),"") -> 2%
B16: 2024-04-15 | D16: 4 | E16: =IFERROR(IF($D16<>"",E15+(I15/CalPerPond)*IF(Doelgewicht="TOENAME",1,-1),""),"") -> 149.6 | F16: =IFERROR(LopendeBMR,"") -> 1451 | G16: =IFERROR(IF(K15>0,F15*Activiteitsfactor+IF(Doelgewicht="Aanhouden",0,IF(Doelgewicht="AFNEEMT",-500,IF(Doelgewicht="TOENAME",500))),""),"") -> 1751 | H16: =IFERROR(F16*(Activiteitsfactor),"") -> 2250 | I16: =IFERROR(IF(Doelgewicht="TOENAME",G16-H16,H16-G16),"") -> 499 | J16: 51003 | K16: =IFERROR(IF(Standaard,J16/CalPerPond,J16/CalPerPond/2.2),"") -> 14.6 | L16: =IFERROR(Gewichtsverandering-K16,"") -> 0.43 | M16: =IFERROR(IF(B15<>"",L16/(Gewichtsverandering),""),"") -> 3%
B17: 2024-04-16 | D17: 5 | E17: =IFERROR(IF($D17<>"",E16+(I16/CalPerPond)*IF(Doelgewicht="TOENAME",1,-1),""),"") -> 149.4 | F17: =IFERROR(LopendeBMR,"") -> 1451 | G17: =IFERROR(IF(K16>0,F16*Activiteitsfactor+IF(Doelgewicht="Aanhouden",0,IF(Doelgewicht="AFNEEMT",-500,IF(Doelgewicht="TOENAME",500))),""),"") -> 1750 | H17: =IFERROR(F17*(Activiteitsfactor),"") -> 2249 | I17: =IFERROR(IF(Doelgewicht="TOENAME",G17-H17,H17-G17),"") -> 499 | J17: 50504 | K17: =IFERROR(IF(Standaard,J17/CalPerPond,J17/CalPerPond/2.2),"") -> 14.4 | L17: =IFERROR(Gewichtsverandering-K17,"") -> 0.57 | M17: =IFERROR(IF(B16<>"",L17/(Gewichtsverandering),""),"") -> 4%
B18: 2024-04-17 | D18: 6 | E18: =IFERROR(IF($D18<>"",E17+(I17/CalPerPond)*IF(Doelgewicht="TOENAME",1,-1),""),"") -> 149.3 | F18: =IFERROR(LopendeBMR,"") -> 1450 | G18: =IFERROR(IF(K17>0,F17*Activiteitsfactor+IF(Doelgewicht="Aanhouden",0,IF(Doelgewicht="AFNEEMT",-500,IF(Doelgewicht="TOENAME",500))),""),"") -> 1749 | H18: =IFERROR(F18*(Activiteitsfactor),"") -> 2248 | I18: =IFERROR(IF(Doelgewicht="TOENAME",G18-H18,H18-G18),"") -> 499 | J18: 50005 | K18: =IFERROR(IF(Standaard,J18/CalPerPond,J18/CalPerPond/2.2),"") -> 14.3 | L18: =IFERROR(Gewichtsverandering-K18,"") -> 0.71 | M18: =IFERROR(IF(B17<>"",L18/(Gewichtsverandering),""),"") -> 5%
B19: 2024-04-18 | D19: 7 | E19: =IFERROR(IF($D19<>"",E18+(I18/CalPerPond)*IF(Doelgewicht="TOENAME",1,-1),""),"") -> 149.1 | F19: =IFERROR(LopendeBMR,"") -> 1449 | G19: =IFERROR(IF(K18>0,F18*Activiteitsfactor+IF(Doelgewicht="Aanhouden",0,IF(Doelgewicht="AFNEEMT",-500,IF(Doelgewicht="TOENAME",500))),""),"") -> 1748 | H19: =IFERROR(F19*(Activiteitsfactor),"") -> 2247 | I19: =IFERROR(IF(Doelgewicht="TOENAME",G19-H19,H19-G19),"") -> 499 | J19: 49506 | K19: =IFERROR(IF(Standaard,J19/CalPerPond,J19/CalPerPond/2.2),"") -> 14.1 | L19: =IFERROR(Gewichtsverandering-K19,"") -> 0.86 | M19: =IFERROR(IF(B18<>"",L19/(Gewichtsverandering),""),"") -> 6%
B20: 2024-04-19 | C20: 2 | D20: 8 | E20: =IFERROR(IF($D20<>"",E19+(I19/CalPerPond)*IF(Doelgewicht="TOENAME",1,-1),""),"") -> 149.0 | F20: =IFERROR(LopendeBMR,"") -> 1449 | G20: =IFERROR(IF(K19>0,F19*Activiteitsfactor+IF(Doelgewicht="Aanhouden",0,IF(Doelgewicht="AFNEEMT",-500,IF(Doelgewicht="TOENAME",500))),""),"") -> 1747 | H20: =IFERROR(F20*(Activiteitsfactor),"") -> 2246 | I20: =IFERROR(IF(Doelgewicht="TOENAME",G20-H20,H20-G20),"") -> 499 | J20: 49007 | K20: =IFERROR(IF(Standaard,J20/CalPerPond,J20/CalPerPond/2.2),"") -> 14.0 | L20: =IFERROR(Gewichtsverandering-K20,"") -> 1.00 | M20: =IFERROR(IF(B19<>"",L20/(Gewichtsverandering),""),"") -> 7%
B21: 2024-04-20 | D21: 9 | E21: =IFERROR(IF($D21<>"",E20+(I20/CalPerPond)*IF(Doelgewicht="TOENAME",1,-1),""),"") -> 148.9 | F21: =IFERROR(LopendeBMR,"") -> 1448 | G21: =IFERROR(IF(K20>0,F20*Activiteitsfactor+IF(Doelgewicht="Aanhouden",0,IF(Doelgewicht="AFNEEMT",-500,IF(Doelgewicht="TOENAME",500))),""),"") -> 1746 | H21: =IFERROR(F21*(Activiteitsfactor),"") -> 2245 | I21: =IFERROR(IF(Doelgewicht="TOENAME",G21-H21,H21-G21),"") -> 499 | J21: 48508 | K21: =IFERROR(IF(Standaard,J21/CalPerPond,J21/CalPerPond/2.2),"") -> 13.9 | L21: =IFERROR(Gewichtsverandering-K21,"") -> 1.14 | M21: =IFERROR(IF(B20<>"",L21/(Gewichtsverandering),""),"") -> 8%
B22: 2024-04-21 | D22: 10 | E22: =IFERROR(IF($D22<>"",E21+(I21/CalPerPond)*IF(Doelgewicht="TOENAME",1,-1),""),"") -> 148.7 | F22: =IFERROR(LopendeBMR,"") -> 1448 | G22: =IFERROR(IF(K21>0,F21*Activiteitsfactor+IF(Doelgewicht="Aanhouden",0,IF(Doelgewicht="AFNEEMT",-500,IF(Doelgewicht="TOENAME",500))),""),"") -> 1745 | H22: =IFERROR(F22*(Activiteitsfactor),"") -> 2244 | I22: =IFERROR(IF(Doelgewicht="TOENAME",G22-H22,H22-G22),"") -> 499 | J22: 48009 | K22: =IFERROR(IF(Standaard,J22/CalPerPond,J22/CalPerPond/2.2),"") -> 13.7 | L22: =IFERROR(Gewichtsverandering-K22,"") -> 1.28 | M22: =IFERROR(IF(B21<>"",L22/(Gewichtsverandering),""),"") -> 9%
B23: 2024-04-22 | D23: 11 | E23: =IFERROR(IF($D23<>"",E22+(I22/CalPerPond)*IF(Doelgewicht="TOENAME",1,-1),""),"") -> 148.6 | F23: =IFERROR(LopendeBMR,"") -> 1447 | G23: =IFERROR(IF(K22>0,F22*Activiteitsfactor+IF(Doelgewicht="Aanhouden",0,IF(Doelgewicht="AFNEEMT",-500,IF(Doelgewicht="TOENAME",500))),""),"") -> 1744 | H23: =IFERROR(F23*(Activiteitsfactor),"") -> 2243 | I23: =IFERROR(IF(Doelgewicht="TOENAME",G23-H23,H23-G23),"") -> 499 | J23: 47510 | K23: =IFERROR(IF(Standaard,J23/CalPerPond,J23/CalPerPond/2.2),"") -> 13.6 | L23: =IFERROR(Gewichtsverandering-K23,"") -> 1.43 | M23: =IFERROR(IF(B22<>"",L23/(Gewichtsverandering),""),"") -> 10%
B24: 2024-04-23 | D24: 12 | E24: =IFERROR(IF($D24<>"",E23+(I23/CalPerPond)*IF(Doelgewicht="TOENAME",1,-1),""),"") -> 148.4 | F24: =IFERROR(LopendeBMR,"") -> 1446 | G24: =IFERROR(IF(K23>0,F23*Activiteitsfactor+IF(Doelgewicht="Aanhouden",0,IF(Doelgewicht="AFNEEMT",-500,IF(Doelgewicht="TOENAME",500))),""),"") -> 1743 | H24: =IFERROR(F24*(Activiteitsfactor),"") -> 2242 | I24: =IFERROR(IF(Doelgewicht="TOENAME",G24-H24,H24-G24),"") -> 499 | J24: 47011 | K24: =IFERROR(IF(Standaard,J24/CalPerPond,J24/CalPerPond/2.2),"") -> 13.4 | L24: =IFERROR(Gewichtsverandering-K24,"") -> 1.57 | M24: =IFERROR(IF(B23<>"",L24/(Gewichtsverandering),""),"") -> 10%
B25: 2024-04-24 | D25: 13 | E25: =IFERROR(IF($D25<>"",E24+(I24/CalPerPond)*IF(Doelgewicht="TOENAME",1,-1),""),"") -> 148.3 | F25: =IFERROR(LopendeBMR,"") -> 1446 | G25: =IFERROR(IF(K24>0,F24*Activiteitsfactor+IF(Doelgewicht="Aanhouden",0,IF(Doelgewicht="AFNEEMT",-500,IF(Doelgewicht="TOENAME",500))),""),"") -> 1742 | H25: =IFERROR(F25*(Activiteitsfactor),"") -> 2241 | I25: =IFERROR(IF(Doelgewicht="TOENAME",G25-H25,H25-G25),"") -> 499 | J25: 46512 | K25: =IFERROR(IF(Standaard,J25/CalPerPond,J25/CalPerPond/2.2),"") -> 13.3 | L25: =IFERROR(Gewichtsverandering-K25,"") -> 1.71 | M25: =IFERROR(IF(B24<>"",L25/(Gewichtsverandering),""),"") -> 11%
B26: 2024-04-25 | D26: 14 | E26: =IFERROR(IF($D26<>"",E25+(I25/CalPerPond)*IF(Doelgewicht="TOENAME",1,-1),""),"") -> 148.1 | F26: =IFERROR(LopendeBMR,"") -> 1445 | G26: =IFERROR(IF(K25>0,F25*Activiteitsfactor+IF(Doelgewicht="Aanhouden",0,IF(Doelgewicht="AFNEEMT",-500,IF(Doelgewicht="TOENAME",500))),""),"") -> 1741 | H26: =IFERROR(F26*(Activiteitsfactor),"") -> 2240 | I26: =IFERROR(IF(Doelgewicht="TOENAME",G26-H26,H26-G26),"") -> 499 | J26: 46012 | K26: =IFERROR(IF(Standaard,J26/CalPerPond,J26/CalPerPond/2.2),"") -> 13.1 | L26: =IFERROR(Gewichtsverandering-K26,"") -> 1.85 | M26: =IFERROR(IF(B25<>"",L26/(Gewichtsverandering),""),"") -> 12%
B27: 2024-04-26 | C27: 3 | D27: 15 | E27: =IFERROR(IF($D27<>"",E26+(I26/CalPerPond)*IF(Doelgewicht="TOENAME",1,-1),""),"") -> 148.0 | F27: =IFERROR(LopendeBMR,"") -> 1445 | G27: =IFERROR(IF(K26>0,F26*Activiteitsfactor+IF(Doelgewicht="Aanhouden",0,IF(Doelgewicht="AFNEEMT",-500,IF(Doelgewicht="TOENAME",500))),""),"") -> 1740 | H27: =IFERROR(F27*(Activiteitsfactor),"") -> 2239 | I27: =IFERROR(IF(Doelgewicht="TOENAME",G27-H27,H27-G27),"") -> 499 | J27: 45513 | K27: =IFERROR(IF(Standaard,J27/CalPerPond,J27/CalPerPond/2.2),"") -> 13.0 | L27: =IFERROR(Gewichtsverandering-K27,"") -> 2.00 | M27: =IFERROR(IF(B26<>"",L27/(Gewichtsverandering),""),"") -> 13%
B28: 2024-04-27 | D28: 16 | E28: =IFERROR(IF($D28<>"",E27+(I27/CalPerPond)*IF(Doelgewicht="TOENAME",1,-1),""),"") -> 147.9 | F28: =IFERROR(LopendeBMR,"") -> 1444 | G28: =IFERROR(IF(K27>0,F27*Activiteitsfactor+IF(Doelgewicht="Aanhouden",0,IF(Doelgewicht="AFNEEMT",-500,IF(Doelgewicht="TOENAME",500))),""),"") -> 1739 | H28: =IFERROR(F28*(Activiteitsfactor),"") -> 2238 | I28: =IFERROR(IF(Doelgewicht="TOENAME",G28-H28,H28-G28),"") -> 499 | J28: 45014 | K28: =IFERROR(IF(Standaard,J28/CalPerPond,J28/CalPerPond/2.2),"") -> 12.9 | L28: =IFERROR(Gewichtsverandering-K28,"") -> 2.14 | M28: =IFERROR(IF(B27<>"",L28/(Gewichtsverandering),""),"") -> 14%
B29: 2024-04-28 | D29: 17 | E29: =IFERROR(IF($D29<>"",E28+(I28/CalPerPond)*IF(Doelgewicht="TOENAME",1,-1),""),"") -> 147.7 | F29: =IFERROR(LopendeBMR,"") -> 1443 | G29: =IFERROR(IF(K28>0,F28*Activiteitsfactor+IF(Doelgewicht="Aanhouden",0,IF(Doelgewicht="AFNEEMT",-500,IF(Doelgewicht="TOENAME",500))),""),"") -> 1738 | H29: =IFERROR(F29*(Activiteitsfactor),"") -> 2237 | I29: =IFERROR(IF(Doelgewicht="TOENAME",G29-H29,H29-G29),"") -> 499 | J29: 44515 | K29: =IFERROR(IF(Standaard,J29/CalPerPond,J29/CalPerPond/2.2),"") -> 12.7 | L29: =IFERROR(Gewichtsverandering-K29,"") -> 2.28 | M29: =IFERROR(IF(B28<>"",L29/(Gewichtsverandering),""),"") -> 15%
B30: 2024-04-29 | D30: 18 | E30: =IFERROR(IF($D30<>"",E29+(I29/CalPerPond)*IF(Doelgewicht="TOENAME",1,-1),""),"") -> 147.6 | F30: =IFERROR(LopendeBMR,"") -> 1443 | G30: =IFERROR(IF(K29>0,F29*Activiteitsfactor+IF(Doelgewicht="Aanhouden",0,IF(Doelgewicht="AFNEEMT",-500,IF(Doelgewicht="TOENAME",500))),""),"") -> 1737 | H30: =IFERROR(F30*(Activiteitsfactor),"") -> 2236 | I30: =IFERROR(IF(Doelgewicht="TOENAME",G30-H30,H30-G30),"") -> 499 | J30: 44016 | K30: =IFERROR(IF(Standaard,J30/CalPerPond,J30/CalPerPond/2.2),"") -> 12.6 | L30: =IFERROR(Gewichtsverandering-K30,"") -> 2.42 | M30: =IFERROR(IF(B29<>"",L30/(Gewichtsverandering),""),"") -> 16%
B31: 2024-04-30 | D31: 19 | E31: =IFERROR(IF($D31<>"",E30+(I30/CalPerPond)*IF(Doelgewicht="TOENAME",1,-1),""),"") -> 147.4 | F31: =IFERROR(LopendeBMR,"") -> 1442 | G31: =IFERROR(IF(K30>0,F30*Activiteitsfactor+IF(Doelgewicht="Aanhouden",0,IF(Doelgewicht="AFNEEMT",-500,IF(Doelgewicht="TOENAME",500))),""),"") -> 1736 | H31: =IFERROR(F31*(Activiteitsfactor),"") -> 2235 | I31: =IFERROR(IF(Doelgewicht="TOENAME",G31-H31,H31-G31),"") -> 499 | J31: 43517 | K31: =IFERROR(IF(Standaard,J31/CalPerPond,J31/CalPerPond/2.2),"") -> 12.4 | L31: =IFERROR(Gewichtsverandering-K31,"") -> 2.57 | M31: =IFERROR(IF(B30<>"",L31/(Gewichtsverandering),""),"") -> 17%
B32: 2024-05-01 | D32: 20 | E32: =IFERROR(IF($D32<>"",E31+(I31/CalPerPond)*IF(Doelgewicht="TOENAME",1,-1),""),"") -> 147.3 | F32: =IFERROR(LopendeBMR,"") -> 1441 | G32: =IFERROR(IF(K31>0,F31*Activiteitsfactor+IF(Doelgewicht="Aanhouden",0,IF(Doelgewicht="AFNEEMT",-500,IF(Doelgewicht="TOENAME",500))),""),"") -> 1735 | H32: =IFERROR(F32*(Activiteitsfactor),"") -> 2234 | I32: =IFERROR(IF(Doelgewicht="TOENAME",G32-H32,H32-G32),"") -> 499 | J32: 43018 | K32: =IFERROR(IF(Standaard,J32/CalPerPond,J32/CalPerPond/2.2),"") -> 12.3 | L32: =IFERROR(Gewichtsverandering-K32,"") -> 2.71 | M32: =IFERROR(IF(B31<>"",L32/(Gewichtsverandering),""),"") -> 18%
B33: 2024-05-02 | D33: 21 | E33: =IFERROR(IF($D33<>"",E32+(I32/CalPerPond)*IF(Doelgewicht="TOENAME",1,-1),""),"") -> 147.1 | F33: =IFERROR(LopendeBMR,"") -> 1441 | G33: =IFERROR(IF(K32>0,F32*Activiteitsfactor+IF(Doelgewicht="Aanhouden",0,IF(Doelgewicht="AFNEEMT",-500,IF(Doelgewicht="TOENAME",500))),""),"") -> 1734 | H33: =IFERROR(F33*(Activiteitsfactor),"") -> 2233 | I33: =IFERROR(IF(Doelgewicht="TOENAME",G33-H33,H33-G33),"") -> 499 | J33: 42519 | K33: =IFERROR(IF(Standaard,J33/CalPerPond,J33/CalPerPond/2.2),"") -> 12.1 | L33: =IFERROR(Gewichtsverandering-K33,"") -> 2.85 | M33: =IFERROR(IF(B32<>"",L33/(Gewichtsverandering),""),"") -> 19%
B34: 2024-05-03 | C34: 4 | D34: 22 | E34: =IFERROR(IF($D34<>"",E33+(I33/CalPerPond)*IF(Doelgewicht="TOENAME",1,-1),""),"") -> 147.0 | F34: =IFERROR(LopendeBMR,"") -> 1440 | G34: =IFERROR(IF(K33>0,F33*Activiteitsfactor+IF(Doelgewicht="Aanhouden",0,IF(Doelgewicht="AFNEEMT",-500,IF(Doelgewicht="TOENAME",500))),""),"") -> 1733 | H34: =IFERROR(F34*(Activiteitsfactor),"") -> 2232 | I34: =IFERROR(IF(Doelgewicht="TOENAME",G34-H34,H34-G34),"") -> 499 | J34: 42020 | K34: =IFERROR(IF(Standaard,J34/CalPerPond,J34/CalPerPond/2.2),"") -> 12.0 | L34: =IFERROR(Gewichtsverandering-K34,"") -> 2.99 | M34: =IFERROR(IF(B33<>"",L34/(Gewichtsverandering),""),"") -> 20%
B35: 2024-05-04 | D35: 23 | E35: =IFERROR(IF($D35<>"",E34+(I34/CalPerPond)*IF(Doelgewicht="TOENAME",1,-1),""),"") -> 146.9 | F35: =IFERROR(LopendeBMR,"") -> 1440 | G35: =IFERROR(IF(K34>0,F34*Activiteitsfactor+IF(Doelgewicht="Aanhouden",0,IF(Doelgewicht="AFNEEMT",-500,IF(Doelgewicht="TOENAME",500))),""),"") -> 1732 | H35: =IFERROR(F35*(Activiteitsfactor),"") -> 2231 | I35: =IFERROR(IF(Doelgewicht="TOENAME",G35-H35,H35-G35),"") -> 499 | J35: 41521 | K35: =IFERROR(IF(Standaard,J35/CalPerPond,J35/CalPerPond/2.2),"") -> 11.9 | L35: =IFERROR(Gewichtsverandering-K35,"") -> 3.14 | M35: =IFERROR(IF(B34<>"",L35/(Gewichtsverandering),""),"") -> 21%
B36: 2024-05-05 | D36: 24 | E36: =IFERROR(IF($D36<>"",E35+(I35/CalPerPond)*IF(Doelgewicht="TOENAME",1,-1),""),"") -> 146.7 | F36: =IFERROR(LopendeBMR,"") -> 1439 | G36: =IFERROR(IF(K35>0,F35*Activiteitsfactor+IF(Doelgewicht="Aanhouden",0,IF(Doelgewicht="AFNEEMT",-500,IF(Doelgewicht="TOENAME",500))),""),"") -> 1731 | H36: =IFERROR(F36*(Activiteitsfactor),"") -> 2230 | I36: =IFERROR(IF(Doelgewicht="TOENAME",G36-H36,H36-G36),"") -> 499 | J36: 41022 | K36: =IFERROR(IF(Standaard,J36/CalPerPond,J36/CalPerPond/2.2),"") -> 11.7 | L36: =IFERROR(Gewichtsverandering-K36,"") -> 3.28 | M36: =IFERROR(IF(B35<>"",L36/(Gewichtsverandering),""),"") -> 22%
B37: 2024-05-06 | D37: 25 | E37: =IFERROR(IF($D37<>"",E36+(I36/CalPerPond)*IF(Doelgewicht="TOENAME",1,-1),""),"") -> 146.6 | F37: =IFERROR(LopendeBMR,"") -> 1438 | G37: =IFERROR(IF(K36>0,F36*Activiteitsfactor+IF(Doelgewicht="Aanhouden",0,IF(Doelgewicht="AFNEEMT",-500,IF(Doelgewicht="TOENAME",500))),""),"") -> 1730 | H37: =IFERROR(F37*(Activiteitsfactor),"") -> 2229 | I37: =IFERROR(IF(Doelgewicht="TOENAME",G37-H37,H37-G37),"") -> 499 | J37: 40523 | K37: =IFERROR(IF(Standaard,J37/CalPerPond,J37/CalPerPond/2.2),"") -> 11.6 | L37: =IFERROR(Gewichtsverandering-K37,"") -> 3.42 | M37: =IFERROR(IF(B36<>"",L37/(Gewichtsverandering),""),"") -> 23%
B38: 2024-05-07 | D38: 26 | E38: =IFERROR(IF($D38<>"",E37+(I37/CalPerPond)*IF(Doelgewicht="TOENAME",1,-1),""),"") -> 146.4 | F38: =IFERROR(LopendeBMR,"") -> 1438 | G38: =IFERROR(IF(K37>0,F37*Activiteitsfactor+IF(Doelgewicht="Aanhouden",0,IF(Doelgewicht="AFNEEMT",-500,IF(Doelgewicht="TOENAME",500))),""),"") -> 1729 | H38: =IFERROR(F38*(Activiteitsfactor),"") -> 2228 | I38: =IFERROR(IF(Doelgewicht="TOENAME",G38-H38,H38-G38),"") -> 499 | J38: 40024 | K38: =IFERROR(IF(Standaard,J38/CalPerPond,J38/CalPerPond/2.2),"") -> 11.4 | L38: =IFERROR(Gewichtsverandering-K38,"") -> 3.56 | M38: =IFERROR(IF(B37<>"",L38/(Gewichtsverandering),""),"") -> 24%
B39: 2024-05-08 | D39: 27 | E39: =IFERROR(IF($D39<>"",E38+(I38/CalPerPond)*IF(Doelgewicht="TOENAME",1,-1),""),"") -> 146.3 | F39: =IFERROR(LopendeBMR,"") -> 1437 | G39: =IFERROR(IF(K38>0,F38*Activiteitsfactor+IF(Doelgewicht="Aanhouden",0,IF(Doelgewicht="AFNEEMT",-500,IF(Doelgewicht="TOENAME",500))),""),"") -> 1728 | H39: =IFERROR(F39*(Activiteitsfactor),"") -> 2227 | I39: =IFERROR(IF(Doelgewicht="TOENAME",G39-H39,H39-G39),"") -> 499 | J39: 39525 | K39: =IFERROR(IF(Standaard,J39/CalPerPond,J39/CalPerPond/2.2),"") -> 11.3 | L39: =IFERROR(Gewichtsverandering-K39,"") -> 3.71 | M39: =IFERROR(IF(B38<>"",L39/(Gewichtsverandering),""),"") -> 25%
B40: 2024-05-09 | D40: 28 | E40: =IFERROR(IF($D40<>"",E39+(I39/CalPerPond)*IF(Doelgewicht="TOENAME",1,-1),""),"") -> 146.1 | F40: =IFERROR(LopendeBMR,"") -> 1436 | G40: =IFERROR(IF(K39>0,F39*Activiteitsfactor+IF(Doelgewicht="Aanhouden",0,IF(Doelgewicht="AFNEEMT",-500,IF(Doelgewicht="TOENAME",500))),""),"") -> 1727 | H40: =IFERROR(F40*(Activiteitsfactor),"") -> 2227 | I40: =IFERROR(IF(Doelgewicht="TOENAME",G40-H40,H40-G40),"") -> 499 | J40: 39026 | K40: =IFERROR(IF(Standaard,J40/CalPerPond,J40/CalPerPond/2.2),"") -> 11.2 | L40: =IFERROR(Gewichtsverandering-K40,"") -> 3.85 | M40: =IFERROR(IF(B39<>"",L40/(Gewichtsverandering),""),"") -> 26%
B41: 2024-05-10 | C41: 5 | D41: 29 | E41: =IFERROR(IF($D41<>"",E40+(I40/CalPerPond)*IF(Doelgewicht="TOENAME",1,-1),""),"") -> 146.0 | F41: =IFERROR(LopendeBMR,"") -> 1436 | G41: =IFERROR(IF(K40>0,F40*Activiteitsfactor+IF(Doelgewicht="Aanhouden",0,IF(Doelgewicht="AFNEEMT",-500,IF(Doelgewicht="TOENAME",500))),""),"") -> 1727 | H41: =IFERROR(F41*(Activiteitsfactor),"") -> 2226 | I41: =IFERROR(IF(Doelgewicht="TOENAME",G41-H41,H41-G41),"") -> 499 | J41: 38527 | K41: =IFERROR(IF(Standaard,J41/CalPerPond,J41/CalPerPond/2.2),"") -> 11.0 | L41: =IFERROR(Gewichtsverandering-K41,"") -> 3.99 | M41: =IFERROR(IF(B40<>"",L41/(Gewichtsverandering),""),"") -> 27%
B42: 2024-05-11 | D42: 30 | E42: =IFERROR(IF($D42<>"",E41+(I41/CalPerPond)*IF(Doelgewicht="TOENAME",1,-1),""),"") -> 145.9 | F42: =IFERROR(LopendeBMR,"") -> 1435 | G42: =IFERROR(IF(K41>0,F41*Activiteitsfactor+IF(Doelgewicht="Aanhouden",0,IF(Doelgewicht="AFNEEMT",-500,IF(Doelgewicht="TOENAME",500))),""),"") -> 1726 | H42: =IFERROR(F42*(Activiteitsfactor),"") -> 2225 | I42: =IFERROR(IF(Doelgewicht="TOENAME",G42-H42,H42-G42),"") -> 499 | J42: 38028 | K42: =IFERROR(IF(Standaard,J42/CalPerPond,J42/CalPerPond/2.2),"") -> 10.9 | L42: =IFERROR(Gewichtsverandering-K42,"") -> 4.13 | M42: =IFERROR(IF(B41<>"",L42/(Gewichtsverandering),""),"") -> 28%
B43: 2024-05-12 | D43: 31 | E43: =IFERROR(IF($D43<>"",E42+(I42/CalPerPond)*IF(Doelgewicht="TOENAME",1,-1),""),"") -> 145.7 | F43: =IFERROR(LopendeBMR,"") -> 1435 | G43: =IFERROR(IF(K42>0,F42*Activiteitsfactor+IF(Doelgewicht="Aanhouden",0,IF(Doelgewicht="AFNEEMT",-500,IF(Doelgewicht="TOENAME",500))),""),"") -> 1725 | H43: =IFERROR(F43*(Activiteitsfactor),"") -> 2224 | I43: =IFERROR(IF(Doelgewicht="TOENAME",G43-H43,H43-G43),"") -> 499 | J43: 37529 | K43: =IFERROR(IF(Standaard,J43/CalPerPond,J43/CalPerPond/2.2),"") -> 10.7 | L43: =IFERROR(Gewichtsverandering-K43,"") -> 4.28 | M43: =IFERROR(IF(B42<>"",L43/(Gewichtsverandering),""),"") -> 29%
B44: 2024-05-13 | D44: 32 | E44: =IFERROR(IF($D44<>"",E43+(I43/CalPerPond)*IF(Doelgewicht="TOENAME",1,-1),""),"") -> 145.6 | F44: =IFERROR(LopendeBMR,"") -> 1434 | G44: =IFERROR(IF(K43>0,F43*Activiteitsfactor+IF(Doelgewicht="Aanhouden",0,IF(Doelgewicht="AFNEEMT",-500,IF(Doelgewicht="TOENAME",500))),""),"") -> 1724 | H44: =IFERROR(F44*(Activiteitsfactor),"") -> 2223 | I44: =IFERROR(IF(Doelgewicht="TOENAME",G44-H44,H44-G44),"") -> 499 | J44: 37030 | K44: =IFERROR(IF(Standaard,J44/CalPerPond,J44/CalPerPond/2.2),"") -> 10.6 | L44: =IFERROR(Gewichtsverandering-K44,"") -> 4.42 | M44: =IFERROR(IF(B43<>"",L44/(Gewichtsverandering),""),"") -> 29%
B45: 2024-05-14 | D45: 33 | E45: =IFERROR(IF($D45<>"",E44+(I44/CalPerPond)*IF(Doelgewicht="TOENAME",1,-1),""),"") -> 145.4 | F45: =IFERROR(LopendeBMR,"") -> 1433 | G45: =IFERROR(IF(K44>0,F44*Activiteitsfactor+IF(Doelgewicht="Aanhouden",0,IF(Doelgewicht="AFNEEMT",-500,IF(Doelgewicht="TOENAME",500))),""),"") -> 1723 | H45: =IFERROR(F45*(Activiteitsfactor),"") -> 2222 | I45: =IFERROR(IF(Doelgewicht="TOENAME",G45-H45,H45-G45),"") -> 499 | J45: 36531 | K45: =IFERROR(IF(Standaard,J45/CalPerPond,J45/CalPerPond/2.2),"") -> 10.4 | L45: =IFERROR(Gewichtsverandering-K45,"") -> 4.56 | M45: =IFERROR(IF(B44<>"",L45/(Gewichtsverandering),""),"") -> 30%
B46: 2024-05-15 | D46: 34 | E46: =IFERROR(IF($D46<>"",E45+(I45/CalPerPond)*IF(Doelgewicht="TOENAME",1,-1),""),"") -> 145.3 | F46: =IFERROR(LopendeBMR,"") -> 1433 | G46: =IFERROR(IF(K45>0,F45*Activiteitsfactor+IF(Doelgewicht="Aanhouden",0,IF(Doelgewicht="AFNEEMT",-500,IF(Doelgewicht="TOENAME",500))),""),"") -> 1722 | H46: =IFERROR(F46*(Activiteitsfactor),"") -> 2221 | I46: =IFERROR(IF(Doelgewicht="TOENAME",G46-H46,H46-G46),"") -> 499 | J46: 36032 | K46: =IFERROR(IF(Standaard,J46/CalPerPond,J46/CalPerPond/2.2),"") -> 10.3 | L46: =IFERROR(Gewichtsverandering-K46,"") -> 4.71 | M46: =IFERROR(IF(B45<>"",L46/(Gewichtsverandering),""),"") -> 31%
B47: 2024-05-16 | D47: 35 | E47: =IFERROR(IF($D47<>"",E46+(I46/CalPerPond)*IF(Doelgewicht="TOENAME",1,-1),""),"") -> 145.2 | F47: =IFERROR(LopendeBMR,"") -> 1432 | G47: =IFERROR(IF(K46>0,F46*Activiteitsfactor+IF(Doelgewicht="Aanhouden",0,IF(Doelgewicht="AFNEEMT",-500,IF(Doelgewicht="TOENAME",500))),""),"") -> 1721 | H47: =IFERROR(F47*(Activiteitsfactor),"") -> 2220 | I47: =IFERROR(IF(Doelgewicht="TOENAME",G47-H47,H47-G47),"") -> 499 | J47: 35533 | K47: =IFERROR(IF(Standaard,J47/CalPerPond,J47/CalPerPond/2.2),"") -> 10.2 | L47: =IFERROR(Gewichtsverandering-K47,"") -> 4.85 | M47: =IFERROR(IF(B46<>"",L47/(Gewichtsverandering),""),"") -> 32%
B48: 2024-05-17 | C48: 6 | D48: 36 | E48: =IFERROR(IF($D48<>"",E47+(I47/CalPerPond)*IF(Doelgewicht="TOENAME",1,-1),""),"") -> 145.0 | F48: =IFERROR(LopendeBMR,"") -> 1431 | G48: =IFERROR(IF(K47>0,F47*Activiteitsfactor+IF(Doelgewicht="Aanhouden",0,IF(Doelgewicht="AFNEEMT",-500,IF(Doelgewicht="TOENAME",500))),""),"") -> 1720 | H48: =IFERROR(F48*(Activiteitsfactor),"") -> 2219 | I48: =IFERROR(IF(Doelgewicht="TOENAME",G48-H48,H48-G48),"") -> 499 | J48: 35034 | K48: =IFERROR(IF(Standaard,J48/CalPerPond,J48/CalPerPond/2.2),"") -> 10.0 | L48: =IFERROR(Gewichtsverandering-K48,"") -> 4.99 | M48: =IFERROR(IF(B47<>"",L48/(Gewichtsverandering),""),"") -> 33%
B49: 2024-05-18 | D49: 37 | E49: =IFERROR(IF($D49<>"",E48+(I48/CalPerPond)*IF(Doelgewicht="TOENAME",1,-1),""),"") -> 144.9 | F49: =IFERROR(LopendeBMR,"") -> 1431 | G49: =IFERROR(IF(K48>0,F48*Activiteitsfactor+IF(Doelgewicht="Aanhouden",0,IF(Doelgewicht="AFNEEMT",-500,IF(Doelgewicht="TOENAME",500))),""),"") -> 1719 | H49: =IFERROR(F49*(Activiteitsfactor),"") -> 2218 | I49: =IFERROR(IF(Doelgewicht="TOENAME",G49-H49,H49-G49),"") -> 499 | J49: 34535 | K49: =IFERROR(IF(Standaard,J49/CalPerPond,J49/CalPerPond/2.2),"") -> 9.9 | L49: =IFERROR(Gewichtsverandering-K49,"") -> 5.13 | M49: =IFERROR(IF(B48<>"",L49/(Gewichtsverandering),""),"") -> 34%
B50: 2024-05-19 | D50: 38 | E50: =IFERROR(IF($D50<>"",E49+(I49/CalPerPond)*IF(Doelgewicht="TOENAME",1,-1),""),"") -> 144.7 | F50: =IFERROR(LopendeBMR,"") -> 1430 | G50: =IFERROR(IF(K49>0,F49*Activiteitsfactor+IF(Doelgewicht="Aanhouden",0,IF(Doelgewicht="AFNEEMT",-500,IF(Doelgewicht="TOENAME",500))),""),"") -> 1718 | H50: =IFERROR(F50*(Activiteitsfactor),"") -> 2217 | I50: =IFERROR(IF(Doelgewicht="TOENAME",G50-H50,H50-G50),"") -> 499 | J50: 34036 | K50: =IFERROR(IF(Standaard,J50/CalPerPond,J50/CalPerPond/2.2),"") -> 9.7 | L50: =IFERROR(Gewichtsverandering-K50,"") -> 5.28 | M50: =IFERROR(IF(B49<>"",L50/(Gewichtsverandering),""),"") -> 35%
B51: 2024-05-20 | D51: 39 | E51: =IFERROR(IF($D51<>"",E50+(I50/CalPerPond)*IF(Doelgewicht="TOENAME",1,-1),""),"") -> 144.6 | F51: =IFERROR(LopendeBMR,"") -> 1430 | G51: =IFERROR(IF(K50>0,F50*Activiteitsfactor+IF(Doelgewicht="Aanhouden",0,IF(Doelgewicht="AFNEEMT",-500,IF(Doelgewicht="TOENAME",500))),""),"") -> 1717 | H51: =IFERROR(F51*(Activiteitsfactor),"") -> 2216 | I51: =IFERROR(IF(Doelgewicht="TOENAME",G51-H51,H51-G51),"") -> 499 | J51: 33537 | K51: =IFERROR(IF(Standaard,J51/CalPerPond,J51/CalPerPond/2.2),"") -> 9.6 | L51: =IFERROR(Gewichtsverandering-K51,"") -> 5.42 | M51: =IFERROR(IF(B50<>"",L51/(Gewichtsverandering),""),"") -> 36%
B52: 2024-05-21 | D52: 40 | E52: =IFERROR(IF($D52<>"",E51+(I51/CalPerPond)*IF(Doelgewicht="TOENAME",1,-1),""),"") -> 144.4 | F52: =IFERROR(LopendeBMR,"") -> 1429 | G52: =IFERROR(IF(K51>0,F51*Activiteitsfactor+IF(Doelgewicht="Aanhouden",0,IF(Doelgewicht="AFNEEMT",-500,IF(Doelgewicht="TOENAME",500))),""),"") -> 1716 | H52: =IFERROR(F52*(Activiteitsfactor),"") -> 2215 | I52: =IFERROR(IF(Doelgewicht="TOENAME",G52-H52,H52-G52),"") -> 499 | J52: 33037 | K52: =IFERROR(IF(Standaard,J52/CalPerPond,J52/CalPerPond/2.2),"") -> 9.4 | L52: =IFERROR(Gewichtsverandering-K52,"") -> 5.56 | M52: =IFERROR(IF(B51<>"",L52/(Gewichtsverandering),""),"") -> 37%
B53: 2024-05-22 | D53: 41 | E53: =IFERROR(IF($D53<>"",E52+(I52/CalPerPond)*IF(Doelgewicht="TOENAME",1,-1),""),"") -> 144.3 | F53: =IFERROR(LopendeBMR,"") -> 1428 | G53: =IFERROR(IF(K52>0,F52*Activiteitsfactor+IF(Doelgewicht="Aanhouden",0,IF(Doelgewicht="AFNEEMT",-500,IF(Doelgewicht="TOENAME",500))),""),"") -> 1715 | H53: =IFERROR(F53*(Activiteitsfactor),"") -> 2214 | I53: =IFERROR(IF(Doelgewicht="TOENAME",G53-H53,H53-G53),"") -> 499 | J53: 32538 | K53: =IFERROR(IF(Standaard,J53/CalPerPond,J53/CalPerPond/2.2),"") -> 9.3 | L53: =IFERROR(Gewichtsverandering-K53,"") -> 5.70 | M53: =IFERROR(IF(B52<>"",L53/(Gewichtsverandering),""),"") -> 38%
B54: 2024-05-23 | D54: 42 | E54: =IFERROR(IF($D54<>"",E53+(I53/CalPerPond)*IF(Doelgewicht="TOENAME",1,-1),""),"") -> 144.2 | F54: =IFERROR(LopendeBMR,"") -> 1428 | G54: =IFERROR(IF(K53>0,F53*Activiteitsfactor+IF(Doelgewicht="Aanhouden",0,IF(Doelgewicht="AFNEEMT",-500,IF(Doelgewicht="TOENAME",500))),""),"") -> 1714 | H54: =IFERROR(F54*(Activiteitsfactor),"") -> 2213 | I54: =IFERROR(IF(Doelgewicht="TOENAME",G54-H54,H54-G54),"") -> 499 | J54: 32039 | K54: =IFERROR(IF(Standaard,J54/CalPerPond,J54/CalPerPond/2.2),"") -> 9.2 | L54: =IFERROR(Gewichtsverandering-K54,"") -> 5.85 | M54: =IFERROR(IF(B53<>"",L54/(Gewichtsverandering),""),"") -> 39%
B55: 2024-05-24 | C55: 7 | D55: 43 | E55: =IFERROR(IF($D55<>"",E54+(I54/CalPerPond)*IF(Doelgewicht="TOENAME",1,-1),""),"") -> 144.0 | F55: =IFERROR(LopendeBMR,"") -> 1427 | G55: =IFERROR(IF(K54>0,F54*Activiteitsfactor+IF(Doelgewicht="Aanhouden",0,IF(Doelgewicht="AFNEEMT",-500,IF(Doelgewicht="TOENAME",500))),""),"") -> 1713 | H55: =IFERROR(F55*(Activiteitsfactor),"") -> 2212 | I55: =IFERROR(IF(Doelgewicht="TOENAME",G55-H55,H55-G55),"") -> 499 | J55: 31540 | K55: =IFERROR(IF(Standaard,J55/CalPerPond,J55/CalPerPond/2.2),"") -> 9.0 | L55: =IFERROR(Gewichtsverandering-K55,"") -> 5.99 | M55: =IFERROR(IF(B54<>"",L55/(Gewichtsverandering),""),"") -> 40%
B56: 2024-05-25 | D56: 44 | E56: =IFERROR(IF($D56<>"",E55+(I55/CalPerPond)*IF(Doelgewicht="TOENAME",1,-1),""),"") -> 143.9 | F56: =IFERROR(LopendeBMR,"") -> 1427 | G56: =IFERROR(IF(K55>0,F55*Activiteitsfactor+IF(Doelgewicht="Aanhouden",0,IF(Doelgewicht="AFNEEMT",-500,IF(Doelgewicht="TOENAME",500))),""),"") -> 1712 | H56: =IFERROR(F56*(Activiteitsfactor),"") -> 2211 | I56: =IFERROR(IF(Doelgewicht="TOENAME",G56-H56,H56-G56),"") -> 499 | J56: 31041 | K56: =IFERROR(IF(Standaard,J56/CalPerPond,J56/CalPerPond/2.2),"") -> 8.9 | L56: =IFERROR(Gewichtsverandering-K56,"") -> 6.13 | M56: =IFERROR(IF(B55<>"",L56/(Gewichtsverandering),""),"") -> 41%
B57: 2024-05-26 | D57: 45 | E57: =IFERROR(IF($D57<>"",E56+(I56/CalPerPond)*IF(Doelgewicht="TOENAME",1,-1),""),"") -> 143.7 | F57: =IFERROR(LopendeBMR,"") -> 1426 | G57: =IFERROR(IF(K56>0,F56*Activiteitsfactor+IF(Doelgewicht="Aanhouden",0,IF(Doelgewicht="AFNEEMT",-500,IF(Doelgewicht="TOENAME",500))),""),"") -> 1711 | H57: =IFERROR(F57*(Activiteitsfactor),"") -> 2210 | I57: =IFERROR(IF(Doelgewicht="TOENAME",G57-H57,H57-G57),"") -> 499 | J57: 30542 | K57: =IFERROR(IF(Standaard,J57/CalPerPond,J57/CalPerPond/2.2),"") -> 8.7 | L57: =IFERROR(Gewichtsverandering-K57,"") -> 6.27 | M57: =IFERROR(IF(B56<>"",L57/(Gewichtsverandering),""),"") -> 42%
B58: 2024-05-27 | D58: 46 | E58: =IFERROR(IF($D58<>"",E57+(I57/CalPerPond)*IF(Doelgewicht="TOENAME",1,-1),""),"") -> 143.6 | F58: =IFERROR(LopendeBMR,"") -> 1425 | G58: =IFERROR(IF(K57>0,F57*Activiteitsfactor+IF(Doelgewicht="Aanhouden",0,IF(Doelgewicht="AFNEEMT",-500,IF(Doelgewicht="TOENAME",500))),""),"") -> 1710 | H58: =IFERROR(F58*(Activiteitsfactor),"") -> 2209 | I58: =IFERROR(IF(Doelgewicht="TOENAME",G58-H58,H58-G58),"") -> 499 | J58: 30043 | K58: =IFERROR(IF(Standaard,J58/CalPerPond,J58/CalPerPond/2.2),"") -> 8.6 | L58: =IFERROR(Gewichtsverandering-K58,"") -> 6.42 | M58: =IFERROR(IF(B57<>"",L58/(Gewichtsverandering),""),"") -> 43%
B59: 2024-05-28 | D59: 47 | E59: =IFERROR(IF($D59<>"",E58+(I58/CalPerPond)*IF(Doelgewicht="TOENAME",1,-1),""),"") -> 143.4 | F59: =IFERROR(LopendeBMR,"") -> 1425 | G59: =IFERROR(IF(K58>0,F58*Activiteitsfactor+IF(Doelgewicht="Aanhouden",0,IF(Doelgewicht="AFNEEMT",-500,IF(Doelgewicht="TOENAME",500))),""),"") -> 1709 | H59: =IFERROR(F59*(Activiteitsfactor),"") -> 2208 | I59: =IFERROR(IF(Doelgewicht="TOENAME",G59-H59,H59-G59),"") -> 499 | J59: 29544 | K59: =IFERROR(IF(Standaard,J59/CalPerPond,J59/CalPerPond/2.2),"") -> 8.4 | L59: =IFERROR(Gewichtsverandering-K59,"") -> 6.56 | M59: =IFERROR(IF(B58<>"",L59/(Gewichtsverandering),""),"") -> 44%
B60: 2024-05-29 | D60: 48 | E60: =IFERROR(IF($D60<>"",E59+(I59/CalPerPond)*IF(Doelgewicht="TOENAME",1,-1),""),"") -> 143.3 | F60: =IFERROR(LopendeBMR,"") -> 1424 | G60: =IFERROR(IF(K59>0,F59*Activiteitsfactor+IF(Doelgewicht="Aanhouden",0,IF(Doelgewicht="AFNEEMT",-500,IF(Doelgewicht="TOENAME",500))),""),"") -> 1708 | H60: =IFERROR(F60*(Activiteitsfactor),"") -> 2207 | I60: =IFERROR(IF(Doelgewicht="TOENAME",G60-H60,H60-G60),"") -> 499 | J60: 29045 | K60: =IFERROR(IF(Standaard,J60/CalPerPond,J60/CalPerPond/2.2),"") -> 8.3 | L60: =IFERROR(Gewichtsverandering-K60,"") -> 6.70 | M60: =IFERROR(IF(B59<>"",L60/(Gewichtsverandering),""),"") -> 45%
B61: 2024-05-30 | D61: 49 | E61: =IFERROR(IF($D61<>"",E60+(I60/CalPerPond)*IF(Doelgewicht="TOENAME",1,-1),""),"") -> 143.2 | F61: =IFERROR(LopendeBMR,"") -> 1423 | G61: =IFERROR(IF(K60>0,F60*Activiteitsfactor+IF(Doelgewicht="Aanhouden",0,IF(Doelgewicht="AFNEEMT",-500,IF(Doelgewicht="TOENAME",500))),""),"") -> 1707 | H61: =IFERROR(F61*(Activiteitsfactor),"") -> 2206 | I61: =IFERROR(IF(Doelgewicht="TOENAME",G61-H61,H61-G61),"") -> 499 | J61: 28546 | K61: =IFERROR(IF(Standaard,J61/CalPerPond,J61/CalPerPond/2.2),"") -> 8.2 | L61: =IFERROR(Gewichtsverandering-K61,"") -> 6.84 | M61: =IFERROR(IF(B60<>"",L61/(Gewichtsverandering),""),"") -> 46%
B62: 2024-05-31 | C62: 8 | D62: 50 | E62: =IFERROR(IF($D62<>"",E61+(I61/CalPerPond)*IF(Doelgewicht="TOENAME",1,-1),""),"") -> 143.0 | F62: =IFERROR(LopendeBMR,"") -> 1423 | G62: =IFERROR(IF(K61>0,F61*Activiteitsfactor+IF(Doelgewicht="Aanhouden",0,IF(Doelgewicht="AFNEEMT",-500,IF(Doelgewicht="TOENAME",500))),""),"") -> 1706 | H62: =IFERROR(F62*(Activiteitsfactor),"") -> 2205 | I62: =IFERROR(IF(Doelgewicht="TOENAME",G62-H62,H62-G62),"") -> 499 | J62: 28047 | K62: =IFERROR(IF(Standaard,J62/CalPerPond,J62/CalPerPond/2.2),"") -> 8.0 | L62: =IFERROR(Gewichtsverandering-K62,"") -> 6.99 | M62: =IFERROR(IF(B61<>"",L62/(Gewichtsverandering),""),"") -> 47%
B63: 2024-06-01 | D63: 51 | E63: =IFERROR(IF($D63<>"",E62+(I62/CalPerPond)*IF(Doelgewicht="TOENAME",1,-1),""),"") -> 142.9 | F63: =IFERROR(LopendeBMR,"") -> 1422 | G63: =IFERROR(IF(K62>0,F62*Activiteitsfactor+IF(Doelgewicht="Aanhouden",0,IF(Doelgewicht="AFNEEMT",-500,IF(Doelgewicht="TOENAME",500))),""),"") -> 1705 | H63: =IFERROR(F63*(Activiteitsfactor),"") -> 2204 | I63: =IFERROR(IF(Doelgewicht="TOENAME",G63-H63,H63-G63),"") -> 499 | J63: 27548 | K63: =IFERROR(IF(Standaard,J63/CalPerPond,J63/CalPerPond/2.2),"") -> 7.9 | L63: =IFERROR(Gewichtsverandering-K63,"") -> 7.13 | M63: =IFERROR(IF(B62<>"",L63/(Gewichtsverandering),""),"") -> 48%
B64: 2024-06-02 | D64: 52 | E64: =IFERROR(IF($D64<>"",E63+(I63/CalPerPond)*IF(Doelgewicht="TOENAME",1,-1),""),"") -> 142.7 | F64: =IFERROR(LopendeBMR,"") -> 1422 | G64: =IFERROR(IF(K63>0,F63*Activiteitsfactor+IF(Doelgewicht="Aanhouden",0,IF(Doelgewicht="AFNEEMT",-500,IF(Doelgewicht="TOENAME",500))),""),"") -> 1704 | H64: =IFERROR(F64*(Activiteitsfactor),"") -> 2203 | I64: =IFERROR(IF(Doelgewicht="TOENAME",G64-H64,H64-G64),"") -> 499 | J64: 27049 | K64: =IFERROR(IF(Standaard,J64/CalPerPond,J64/CalPerPond/2.2),"") -> 7.7 | L64: =IFERROR(Gewichtsverandering-K64,"") -> 7.27 | M64: =IFERROR(IF(B63<>"",L64/(Gewichtsverandering),""),"") -> 48%
B65: 2024-06-03 | D65: 53 | E65: =IFERROR(IF($D65<>"",E64+(I64/CalPerPond)*IF(Doelgewicht="TOENAME",1,-1),""),"") -> 142.6 | F65: =IFERROR(LopendeBMR,"") -> 1421 | G65: =IFERROR(IF(K64>0,F64*Activiteitsfactor+IF(Doelgewicht="Aanhouden",0,IF(Doelgewicht="AFNEEMT",-500,IF(Doelgewicht="TOENAME",500))),""),"") -> 1703 | H65: =IFERROR(F65*(Activiteitsfactor),"") -> 2202 | I65: =IFERROR(IF(Doelgewicht="TOENAME",G65-H65,H65-G65),"") -> 499 | J65: 26550 | K65: =IFERROR(IF(Standaard,J65/CalPerPond,J65/CalPerPond/2.2),"") -> 7.6 | L65: =IFERROR(Gewichtsverandering-K65,"") -> 7.41 | M65: =IFERROR(IF(B64<>"",L65/(Gewichtsverandering),""),"") -> 49%
B66: 2024-06-04 | D66: 54 | E66: =IFERROR(IF($D66<>"",E65+(I65/CalPerPond)*IF(Doelgewicht="TOENAME",1,-1),""),"") -> 142.4 | F66: =IFERROR(LopendeBMR,"") -> 1420 | G66: =IFERROR(IF(K65>0,F65*Activiteitsfactor+IF(Doelgewicht="Aanhouden",0,IF(Doelgewicht="AFNEEMT",-500,IF(Doelgewicht="TOENAME",500))),""),"") -> 1702 | H66: =IFERROR(F66*(Activiteitsfactor),"") -> 2202 | I66: =IFERROR(IF(Doelgewicht="TOENAME",G66-H66,H66-G66),"") -> 499 | J66: 26051 | K66: =IFERROR(IF(Standaard,J66/CalPerPond,J66/CalPerPond/2.2),"") -> 7.4 | L66: =IFERROR(Gewichtsverandering-K66,"") -> 7.56 | M66: =IFERROR(IF(B65<>"",L66/(Gewichtsverandering),""),"") -> 50%
B67: 2024-06-05 | D67: 55 | E67: =IFERROR(IF($D67<>"",E66+(I66/CalPerPond)*IF(Doelgewicht="TOENAME",1,-1),""),"") -> 142.3 | F67: =IFERROR(LopendeBMR,"") -> 1420 | G67: =IFERROR(IF(K66>0,F66*Activiteitsfactor+IF(Doelgewicht="Aanhouden",0,IF(Doelgewicht="AFNEEMT",-500,IF(Doelgewicht="TOENAME",500))),""),"") -> 1702 | H67: =IFERROR(F67*(Activiteitsfactor),"") -> 2201 | I67: =IFERROR(IF(Doelgewicht="TOENAME",G67-H67,H67-G67),"") -> 499 | J67: 25552 | K67: =IFERROR(IF(Standaard,J67/CalPerPond,J67/CalPerPond/2.2),"") -> 7.3 | L67: =IFERROR(Gewichtsverandering-K67,"") -> 7.70 | M67: =IFERROR(IF(B66<>"",L67/(Gewichtsverandering),""),"") -> 51%
B68: 2024-06-06 | D68: 56 | E68: =IFERROR(IF($D68<>"",E67+(I67/CalPerPond)*IF(Doelgewicht="TOENAME",1,-1),""),"") -> 142.2 | F68: =IFERROR(LopendeBMR,"") -> 1419 | G68: =IFERROR(IF(K67>0,F67*Activiteitsfactor+IF(Doelgewicht="Aanhouden",0,IF(Doelgewicht="AFNEEMT",-500,IF(Doelgewicht="TOENAME",500))),""),"") -> 1701 | H68: =IFERROR(F68*(Activiteitsfactor),"") -> 2200 | I68: =IFERROR(IF(Doelgewicht="TOENAME",G68-H68,H68-G68),"") -> 499 | J68: 25053 | K68: =IFERROR(IF(Standaard,J68/CalPerPond,J68/CalPerPond/2.2),"") -> 7.2 | L68: =IFERROR(Gewichtsverandering-K68,"") -> 7.84 | M68: =IFERROR(IF(B67<>"",L68/(Gewichtsverandering),""),"") -> 52%
B69: 2024-06-07 | C69: 9 | D69: 57 | E69: =IFERROR(IF($D69<>"",E68+(I68/CalPerPond)*IF(Doelgewicht="TOENAME",1,-1),""),"") -> 142.0 | F69: =IFERROR(LopendeBMR,"") -> 1418 | G69: =IFERROR(IF(K68>0,F68*Activiteitsfactor+IF(Doelgewicht="Aanhouden",0,IF(Doelgewicht="AFNEEMT",-500,IF(Doelgewicht="TOENAME",500))),""),"") -> 1700 | H69: =IFERROR(F69*(Activiteitsfactor),"") -> 2199 | I69: =IFERROR(IF(Doelgewicht="TOENAME",G69-H69,H69-G69),"") -> 499 | J69: 24554 | K69: =IFERROR(IF(Standaard,J69/CalPerPond,J69/CalPerPond/2.2),"") -> 7.0 | L69: =IFERROR(Gewichtsverandering-K69,"") -> 7.98 | M69: =IFERROR(IF(B68<>"",L69/(Gewichtsverandering),""),"") -> 53%
B70: 2024-06-08 | D70: 58 | E70: =IFERROR(IF($D70<>"",E69+(I69/CalPerPond)*IF(Doelgewicht="TOENAME",1,-1),""),"") -> 141.9 | F70: =IFERROR(LopendeBMR,"") -> 1418 | G70: =IFERROR(IF(K69>0,F69*Activiteitsfactor+IF(Doelgewicht="Aanhouden",0,IF(Doelgewicht="AFNEEMT",-500,IF(Doelgewicht="TOENAME",500))),""),"") -> 1699 | H70: =IFERROR(F70*(Activiteitsfactor),"") -> 2198 | I70: =IFERROR(IF(Doelgewicht="TOENAME",G70-H70,H70-G70),"") -> 499 | J70: 24055 | K70: =IFERROR(IF(Standaard,J70/CalPerPond,J70/CalPerPond/2.2),"") -> 6.9 | L70: =IFERROR(Gewichtsverandering-K70,"") -> 8.13 | M70: =IFERROR(IF(B69<>"",L70/(Gewichtsverandering),""),"") -> 54%
B71: 2024-06-09 | D71: 59 | E71: =IFERROR(IF($D71<>"",E70+(I70/CalPerPond)*IF(Doelgewicht="TOENAME",1,-1),""),"") -> 141.7 | F71: =IFERROR(LopendeBMR,"") -> 1417 | G71: =IFERROR(IF(K70>0,F70*Activiteitsfactor+IF(Doelgewicht="Aanhouden",0,IF(Doelgewicht="AFNEEMT",-500,IF(Doelgewicht="TOENAME",500))),""),"") -> 1698 | H71: =IFERROR(F71*(Activiteitsfactor),"") -> 2197 | I71: =IFERROR(IF(Doelgewicht="TOENAME",G71-H71,H71-G71),"") -> 499 | J71: 23556 | K71: =IFERROR(IF(Standaard,J71/CalPerPond,J71/CalPerPond/2.2),"") -> 6.7 | L71: =IFERROR(Gewichtsverandering-K71,"") -> 8.27 | M71: =IFERROR(IF(B70<>"",L71/(Gewichtsverandering),""),"") -> 55%
B72: 2024-06-10 | D72: 60 | E72: =IFERROR(IF($D72<>"",E71+(I71/CalPerPond)*IF(Doelgewicht="TOENAME",1,-1),""),"") -> 141.6 | F72: =IFERROR(LopendeBMR,"") -> 1417 | G72: =IFERROR(IF(K71>0,F71*Activiteitsfactor+IF(Doelgewicht="Aanhouden",0,IF(Doelgewicht="AFNEEMT",-500,IF(Doelgewicht="TOENAME",500))),""),"") -> 1697 | H72: =IFERROR(F72*(Activiteitsfactor),"") -> 2196 | I72: =IFERROR(IF(Doelgewicht="TOENAME",G72-H72,H72-G72),"") -> 499 | J72: 23057 | K72: =IFERROR(IF(Standaard,J72/CalPerPond,J72/CalPerPond/2.2),"") -> 6.6 | L72: =IFERROR(Gewichtsverandering-K72,"") -> 8.41 | M72: =IFERROR(IF(B71<>"",L72/(Gewichtsverandering),""),"") -> 56%
B73: 2024-06-11 | D73: 61 | E73: =IFERROR(IF($D73<>"",E72+(I72/CalPerPond)*IF(Doelgewicht="TOENAME",1,-1),""),"") -> 141.4 | F73: =IFERROR(LopendeBMR,"") -> 1416 | G73: =IFERROR(IF(K72>0,F72*Activiteitsfactor+IF(Doelgewicht="Aanhouden",0,IF(Doelgewicht="AFNEEMT",-500,IF(Doelgewicht="TOENAME",500))),""),"") -> 1696 | H73: =IFERROR(F73*(Activiteitsfactor),"") -> 2195 | I73: =IFERROR(IF(Doelgewicht="TOENAME",G73-H73,H73-G73),"") -> 499 | J73: 22558 | K73: =IFERROR(IF(Standaard,J73/CalPerPond,J73/CalPerPond/2.2),"") -> 6.4 | L73: =IFERROR(Gewichtsverandering-K73,"") -> 8.55 | M73: =IFERROR(IF(B72<>"",L73/(Gewichtsverandering),""),"") -> 57%
B74: 2024-06-12 | D74: 62 | E74: =IFERROR(IF($D74<>"",E73+(I73/CalPerPond)*IF(Doelgewicht="TOENAME",1,-1),""),"") -> 141.3 | F74: =IFERROR(LopendeBMR,"") -> 1415 | G74: =IFERROR(IF(K73>0,F73*Activiteitsfactor+IF(Doelgewicht="Aanhouden",0,IF(Doelgewicht="AFNEEMT",-500,IF(Doelgewicht="TOENAME",500))),""),"") -> 1695 | H74: =IFERROR(F74*(Activiteitsfactor),"") -> 2194 | I74: =IFERROR(IF(Doelgewicht="TOENAME",G74-H74,H74-G74),"") -> 499 | J74: 22059 | K74: =IFERROR(IF(Standaard,J74/CalPerPond,J74/CalPerPond/2.2),"") -> 6.3 | L74: =IFERROR(Gewichtsverandering-K74,"") -> 8.70 | M74: =IFERROR(IF(B73<>"",L74/(Gewichtsverandering),""),"") -> 58%
B75: 2024-06-13 | D75: 63 | E75: =IFERROR(IF($D75<>"",E74+(I74/CalPerPond)*IF(Doelgewicht="TOENAME",1,-1),""),"") -> 141.2 | F75: =IFERROR(LopendeBMR,"") -> 1415 | G75: =IFERROR(IF(K74>0,F74*Activiteitsfactor+IF(Doelgewicht="Aanhouden",0,IF(Doelgewicht="AFNEEMT",-500,IF(Doelgewicht="TOENAME",500))),""),"") -> 1694 | H75: =IFERROR(F75*(Activiteitsfactor),"") -> 2193 | I75: =IFERROR(IF(Doelgewicht="TOENAME",G75-H75,H75-G75),"") -> 499 | J75: 21560 | K75: =IFERROR(IF(Standaard,J75/CalPerPond,J75/CalPerPond/2.2),"") -> 6.2 | L75: =IFERROR(Gewichtsverandering-K75,"") -> 8.84 | M75: =IFERROR(IF(B74<>"",L75/(Gewichtsverandering),""),"") -> 59%
B76: 2024-06-14 | C76: 10 | D76: 64 | E76: =IFERROR(IF($D76<>"",E75+(I75/CalPerPond)*IF(Doelgewicht="TOENAME",1,-1),""),"") -> 141.0 | F76: =IFERROR(LopendeBMR,"") -> 1414 | G76: =IFERROR(IF(K75>0,F75*Activiteitsfactor+IF(Doelgewicht="Aanhouden",0,IF(Doelgewicht="AFNEEMT",-500,IF(Doelgewicht="TOENAME",500))),""),"") -> 1693 | H76: =IFERROR(F76*(Activiteitsfactor),"") -> 2192 | I76: =IFERROR(IF(Doelgewicht="TOENAME",G76-H76,H76-G76),"") -> 499 | J76: 21061 | K76: =IFERROR(IF(Standaard,J76/CalPerPond,J76/CalPerPond/2.2),"") -> 6.0 | L76: =IFERROR(Gewichtsverandering-K76,"") -> 8.98 | M76: =IFERROR(IF(B75<>"",L76/(Gewichtsverandering),""),"") -> 60%
B77: 2024-06-15 | D77: 65 | E77: =IFERROR(IF($D77<>"",E76+(I76/CalPerPond)*IF(Doelgewicht="TOENAME",1,-1),""),"") -> 140.9 | F77: =IFERROR(LopendeBMR,"") -> 1414 | G77: =IFERROR(IF(K76>0,F76*Activiteitsfactor+IF(Doelgewicht="Aanhouden",0,IF(Doelgewicht="AFNEEMT",-500,IF(Doelgewicht="TOENAME",500))),""),"") -> 1692 | H77: =IFERROR(F77*(Activiteitsfactor),"") -> 2191 | I77: =IFERROR(IF(Doelgewicht="TOENAME",G77-H77,H77-G77),"") -> 499 | J77: 20562 | K77: =IFERROR(IF(Standaard,J77/CalPerPond,J77/CalPerPond/2.2),"") -> 5.9 | L77: =IFERROR(Gewichtsverandering-K77,"") -> 9.13 | M77: =IFERROR(IF(B76<>"",L77/(Gewichtsverandering),""),"") -> 61%
B78: =IFERROR(IF(K77>0,B77+1,""),"") -> 2024-06-16 | D78: =IFERROR(IF(K77>0,D77+1,""),"") -> 66 | E78: =IFERROR(IF($D78<>"",E77+(I77/CalPerPond)*IF(Doelgewicht="TOENAME",1,-1),""),"") -> 140.7 | F78: =IFERROR(LopendeBMR,"") -> 1413 | G78: =IFERROR(IF(K77>0,F77*Activiteitsfactor+IF(Doelgewicht="Aanhouden",0,IF(Doelgewicht="AFNEEMT",-500,IF(Doelgewicht="TOENAME",500))),""),"") -> 1691 | H78: =IFERROR(F78*(Activiteitsfactor),"") -> 2190 | I78: =IFERROR(IF(Doelgewicht="TOENAME",G78-H78,H78-G78),"") -> 499 | J78: 20062 | K78: =IFERROR(IF(Standaard,J78/CalPerPond,J78/CalPerPond/2.2),"") -> 5.7 | L78: =IFERROR(Gewichtsverandering-K78,"") -> 9.27 | M78: =IFERROR(IF(B77<>"",L78/(Gewichtsverandering),""),"") -> 62%
B79: 2024-06-17 | C79: =IFERROR(IF(D79<>"",IF(MOD(D79,7)=1,(D78/7)+1,""),""),"") ->  | D79: 67 | E79: =IFERROR(IF($D79<>"",E78+(I78/CalPerPond)*IF(Doelgewicht="TOENAME",1,-1),""),"") -> 140.6 | F79: =IFERROR(LopendeBMR,"") -> 1412 | G79: =IFERROR(IF(K78>0,F78*Activiteitsfactor+IF(Doelgewicht="Aanhouden",0,IF(Doelgewicht="AFNEEMT",-500,IF(Doelgewicht="TOENAME",500))),""),"") -> 1690 | H79: =IFERROR(F79*(Activiteitsfactor),"") -> 2189 | I79: =IFERROR(IF(Doelgewicht="TOENAME",G79-H79,H79-G79),"") -> 499 | J79: =IFERROR(J78-I79,"") -> 19563 | K79: =IFERROR(IF(Standaard,J79/CalPerPond,J79/CalPerPond/2.2),"") -> 5.6 | L79: =IFERROR(Gewichtsverandering-K79,"") -> 9.41 | M79: =IFERROR(IF(B78<>"",L79/(Gewichtsverandering),""),"") -> 63%
B80: 2024-06-18 | D80: 68 | E80: =IFERROR(IF($D80<>"",E79+(I79/CalPerPond)*IF(Doelgewicht="TOENAME",1,-1),""),"") -> 140.4 | F80: =IFERROR(LopendeBMR,"") -> 1412 | G80: =IFERROR(IF(K79>0,F79*Activiteitsfactor+IF(Doelgewicht="Aanhouden",0,IF(Doelgewicht="AFNEEMT",-500,IF(Doelgewicht="TOENAME",500))),""),"") -> 1689 | H80: =IFERROR(F80*(Activiteitsfactor),"") -> 2188 | I80: =IFERROR(IF(Doelgewicht="TOENAME",G80-H80,H80-G80),"") -> 499 | J80: 19064 | K80: =IFERROR(IF(Standaard,J80/CalPerPond,J80/CalPerPond/2.2),"") -> 5.4 | L80: =IFERROR(Gewichtsverandering-K80,"") -> 9.55 | M80: =IFERROR(IF(B79<>"",L80/(Gewichtsverandering),""),"") -> 64%
B81: 2024-06-19 | D81: 69 | E81: =IFERROR(IF($D81<>"",E80+(I80/CalPerPond)*IF(Doelgewicht="TOENAME",1,-1),""),"") -> 140.3 | F81: =IFERROR(LopendeBMR,"") -> 1411 | G81: =IFERROR(IF(K80>0,F80*Activiteitsfactor+IF(Doelgewicht="Aanhouden",0,IF(Doelgewicht="AFNEEMT",-500,IF(Doelgewicht="TOENAME",500))),""),"") -> 1688 | H81: =IFERROR(F81*(Activiteitsfactor),"") -> 2187 | I81: =IFERROR(IF(Doelgewicht="TOENAME",G81-H81,H81-G81),"") -> 499 | J81: 18565 | K81: =IFERROR(IF(Standaard,J81/CalPerPond,J81/CalPerPond/2.2),"") -> 5.3 | L81: =IFERROR(Gewichtsverandering-K81,"") -> 9.70 | M81: =IFERROR(IF(B80<>"",L81/(Gewichtsverandering),""),"") -> 65%
B82: 2024-06-20 | D82: 70 | E82: =IFERROR(IF($D82<>"",E81+(I81/CalPerPond)*IF(Doelgewicht="TOENAME",1,-1),""),"") -> 140.2 | F82: =IFERROR(LopendeBMR,"") -> 1410 | G82: =IFERROR(IF(K81>0,F81*Activiteitsfactor+IF(Doelgewicht="Aanhouden",0,IF(Doelgewicht="AFNEEMT",-500,IF(Doelgewicht="TOENAME",500))),""),"") -> 1687 | H82: =IFERROR(F82*(Activiteitsfactor),"") -> 2186 | I82: =IFERROR(IF(Doelgewicht="TOENAME",G82-H82,H82-G82),"") -> 499 | J82: 18066 | K82: =IFERROR(IF(Standaard,J82/CalPerPond,J82/CalPerPond/2.2),"") -> 5.2 | L82: =IFERROR(Gewichtsverandering-K82,"") -> 9.84 | M82: =IFERROR(IF(B81<>"",L82/(Gewichtsverandering),""),"") -> 66%
B83: 2024-06-21 | C83: 11 | D83: 71 | E83: =IFERROR(IF($D83<>"",E82+(I82/CalPerPond)*IF(Doelgewicht="TOENAME",1,-1),""),"") -> 140.0 | F83: =IFERROR(LopendeBMR,"") -> 1410 | G83: =IFERROR(IF(K82>0,F82*Activiteitsfactor+IF(Doelgewicht="Aanhouden",0,IF(Doelgewicht="AFNEEMT",-500,IF(Doelgewicht="TOENAME",500))),""),"") -> 1686 | H83: =IFERROR(F83*(Activiteitsfactor),"") -> 2185 | I83: =IFERROR(IF(Doelgewicht="TOENAME",G83-H83,H83-G83),"") -> 499 | J83: 17567 | K83: =IFERROR(IF(Standaard,J83/CalPerPond,J83/CalPerPond/2.2),"") -> 5.0 | L83: =IFERROR(Gewichtsverandering-K83,"") -> 9.98 | M83: =IFERROR(IF(B82<>"",L83/(Gewichtsverandering),""),"") -> 67%
B84: 2024-06-22 | D84: 72 | E84: =IFERROR(IF($D84<>"",E83+(I83/CalPerPond)*IF(Doelgewicht="TOENAME",1,-1),""),"") -> 139.9 | F84: =IFERROR(LopendeBMR,"") -> 1409 | G84: =IFERROR(IF(K83>0,F83*Activiteitsfactor+IF(Doelgewicht="Aanhouden",0,IF(Doelgewicht="AFNEEMT",-500,IF(Doelgewicht="TOENAME",500))),""),"") -> 1685 | H84: =IFERROR(F84*(Activiteitsfactor),"") -> 2184 | I84: =IFERROR(IF(Doelgewicht="TOENAME",G84-H84,H84-G84),"") -> 499 | J84: 17068 | K84: =IFERROR(IF(Standaard,J84/CalPerPond,J84/CalPerPond/2.2),"") -> 4.9 | L84: =IFERROR(Gewichtsverandering-K84,"") -> 10.12 | M84: =IFERROR(IF(B83<>"",L84/(Gewichtsverandering),""),"") -> 67%
B85: 2024-06-23 | D85: 73 | E85: =IFERROR(IF($D85<>"",E84+(I84/CalPerPond)*IF(Doelgewicht="TOENAME",1,-1),""),"") -> 139.7 | F85: =IFERROR(LopendeBMR,"") -> 1409 | G85: =IFERROR(IF(K84>0,F84*Activiteitsfactor+IF(Doelgewicht="Aanhouden",0,IF(Doelgewicht="AFNEEMT",-500,IF(Doelgewicht="TOENAME",500))),""),"") -> 1684 | H85: =IFERROR(F85*(Activiteitsfactor),"") -> 2183 | I85: =IFERROR(IF(Doelgewicht="TOENAME",G85-H85,H85-G85),"") -> 499 | J85: 16569 | K85: =IFERROR(IF(Standaard,J85/CalPerPond,J85/CalPerPond/2.2),"") -> 4.7 | L85: =IFERROR(Gewichtsverandering-K85,"") -> 10.27 | M85: =IFERROR(IF(B84<>"",L85/(Gewichtsverandering),""),"") -> 68%
B86: 2024-06-24 | D86: 74 | E86: =IFERROR(IF($D86<>"",E85+(I85/CalPerPond)*IF(Doelgewicht="TOENAME",1,-1),""),"") -> 139.6 | F86: =IFERROR(LopendeBMR,"") -> 1408 | G86: =IFERROR(IF(K85>0,F85*Activiteitsfactor+IF(Doelgewicht="Aanhouden",0,IF(Doelgewicht="AFNEEMT",-500,IF(Doelgewicht="TOENAME",500))),""),"") -> 1683 | H86: =IFERROR(F86*(Activiteitsfactor),"") -> 2182 | I86: =IFERROR(IF(Doelgewicht="TOENAME",G86-H86,H86-G86),"") -> 499 | J86: 16070 | K86: =IFERROR(IF(Standaard,J86/CalPerPond,J86/CalPerPond/2.2),"") -> 4.6 | L86: =IFERROR(Gewichtsverandering-K86,"") -> 10.41 | M86: =IFERROR(IF(B85<>"",L86/(Gewichtsverandering),""),"") -> 69%
B87: 2024-06-25 | D87: 75 | E87: =IFERROR(IF($D87<>"",E86+(I86/CalPerPond)*IF(Doelgewicht="TOENAME",1,-1),""),"") -> 139.4 | F87: =IFERROR(LopendeBMR,"") -> 1407 | G87: =IFERROR(IF(K86>0,F86*Activiteitsfactor+IF(Doelgewicht="Aanhouden",0,IF(Doelgewicht="AFNEEMT",-500,IF(Doelgewicht="TOENAME",500))),""),"") -> 1682 | H87: =IFERROR(F87*(Activiteitsfactor),"") -> 2181 | I87: =IFERROR(IF(Doelgewicht="TOENAME",G87-H87,H87-G87),"") -> 499 | J87: 15571 | K87: =IFERROR(IF(Standaard,J87/CalPerPond,J87/CalPerPond/2.2),"") -> 4.4 | L87: =IFERROR(Gewichtsverandering-K87,"") -> 10.55 | M87: =IFERROR(IF(B86<>"",L87/(Gewichtsverandering),""),"") -> 70%
B88: 2024-06-26 | D88: 76 | E88: =IFERROR(IF($D88<>"",E87+(I87/CalPerPond)*IF(Doelgewicht="TOENAME",1,-1),""),"") -> 139.3 | F88: =IFERROR(LopendeBMR,"") -> 1407 | G88: =IFERROR(IF(K87>0,F87*Activiteitsfactor+IF(Doelgewicht="Aanhouden",0,IF(Doelgewicht="AFNEEMT",-500,IF(Doelgewicht="TOENAME",500))),""),"") -> 1681 | H88: =IFERROR(F88*(Activiteitsfactor),"") -> 2180 | I88: =IFERROR(IF(Doelgewicht="TOENAME",G88-H88,H88-G88),"") -> 499 | J88: 15072 | K88: =IFERROR(IF(Standaard,J88/CalPerPond,J88/CalPerPond/2.2),"") -> 4.3 | L88: =IFERROR(Gewichtsverandering-K88,"") -> 10.69 | M88: =IFERROR(IF(B87<>"",L88/(Gewichtsverandering),""),"") -> 71%
B89: 2024-06-27 | D89: 77 | E89: =IFERROR(IF($D89<>"",E88+(I88/CalPerPond)*IF(Doelgewicht="TOENAME",1,-1),""),"") -> 139.2 | F89: =IFERROR(LopendeBMR,"") -> 1406 | G89: =IFERROR(IF(K88>0,F88*Activiteitsfactor+IF(Doelgewicht="Aanhouden",0,IF(Doelgewicht="AFNEEMT",-500,IF(Doelgewicht="TOENAME",500))),""),"") -> 1680 | H89: =IFERROR(F89*(Activiteitsfactor),"") -> 2179 | I89: =IFERROR(IF(Doelgewicht="TOENAME",G89-H89,H89-G89),"") -> 499 | J89: 14573 | K89: =IFERROR(IF(Standaard,J89/CalPerPond,J89/CalPerPond/2.2),"") -> 4.2 | L89: =IFERROR(Gewichtsverandering-K89,"") -> 10.84 | M89: =IFERROR(IF(B88<>"",L89/(Gewichtsverandering),""),"") -> 72%
B90: 2024-06-28 | C90: 12 | D90: 78 | E90: =IFERROR(IF($D90<>"",E89+(I89/CalPerPond)*IF(Doelgewicht="TOENAME",1,-1),""),"") -> 139.0 | F90: =IFERROR(LopendeBMR,"") -> 1405 | G90: =IFERROR(IF(K89>0,F89*Activiteitsfactor+IF(Doelgewicht="Aanhouden",0,IF(Doelgewicht="AFNEEMT",-500,IF(Doelgewicht="TOENAME",500))),""),"") -> 1679 | H90: =IFERROR(F90*(Activiteitsfactor),"") -> 2178 | I90: =IFERROR(IF(Doelgewicht="TOENAME",G90-H90,H90-G90),"") -> 499 | J90: 14074 | K90: =IFERROR(IF(Standaard,J90/CalPerPond,J90/CalPerPond/2.2),"") -> 4.0 | L90: =IFERROR(Gewichtsverandering-K90,"") -> 10.98 | M90: =IFERROR(IF(B89<>"",L90/(Gewichtsverandering),""),"") -> 73%
B91: 2024-06-29 | D91: 79 | E91: =IFERROR(IF($D91<>"",E90+(I90/CalPerPond)*IF(Doelgewicht="TOENAME",1,-1),""),"") -> 138.9 | F91: =IFERROR(LopendeBMR,"") -> 1405 | G91: =IFERROR(IF(K90>0,F90*Activiteitsfactor+IF(Doelgewicht="Aanhouden",0,IF(Doelgewicht="AFNEEMT",-500,IF(Doelgewicht="TOENAME",500))),""),"") -> 1678 | H91: =IFERROR(F91*(Activiteitsfactor),"") -> 2177 | I91: =IFERROR(IF(Doelgewicht="TOENAME",G91-H91,H91-G91),"") -> 499 | J91: 13575 | K91: =IFERROR(IF(Standaard,J91/CalPerPond,J91/CalPerPond/2.2),"") -> 3.9 | L91: =IFERROR(Gewichtsverandering-K91,"") -> 11.12 | M91: =IFERROR(IF(B90<>"",L91/(Gewichtsverandering),""),"") -> 74%
B92: 2024-06-30 | D92: 80 | E92: =IFERROR(IF($D92<>"",E91+(I91/CalPerPond)*IF(Doelgewicht="TOENAME",1,-1),""),"") -> 138.7 | F92: =IFERROR(LopendeBMR,"") -> 1404 | G92: =IFERROR(IF(K91>0,F91*Activiteitsfactor+IF(Doelgewicht="Aanhouden",0,IF(Doelgewicht="AFNEEMT",-500,IF(Doelgewicht="TOENAME",500))),""),"") -> 1677 | H92: =IFERROR(F92*(Activiteitsfactor),"") -> 2177 | I92: =IFERROR(IF(Doelgewicht="TOENAME",G92-H92,H92-G92),"") -> 499 | J92: 13076 | K92: =IFERROR(IF(Standaard,J92/CalPerPond,J92/CalPerPond/2.2),"") -> 3.7 | L92: =IFERROR(Gewichtsverandering-K92,"") -> 11.26 | M92: =IFERROR(IF(B91<>"",L92/(Gewichtsverandering),""),"") -> 75%
B93: 2024-07-01 | D93: 81 | E93: =IFERROR(IF($D93<>"",E92+(I92/CalPerPond)*IF(Doelgewicht="TOENAME",1,-1),""),"") -> 138.6 | F93: =IFERROR(LopendeBMR,"") -> 1404 | G93: =IFERROR(IF(K92>0,F92*Activiteitsfactor+IF(Doelgewicht="Aanhouden",0,IF(Doelgewicht="AFNEEMT",-500,IF(Doelgewicht="TOENAME",500))),""),"") -> 1677 | H93: =IFERROR(F93*(Activiteitsfactor),"") -> 2176 | I93: =IFERROR(IF(Doelgewicht="TOENAME",G93-H93,H93-G93),"") -> 499 | J93: 12577 | K93: =IFERROR(IF(Standaard,J93/CalPerPond,J93/CalPerPond/2.2),"") -> 3.6 | L93: =IFERROR(Gewichtsverandering-K93,"") -> 11.41 | M93: =IFERROR(IF(B92<>"",L93/(Gewichtsverandering),""),"") -> 76%
B94: 2024-07-02 | D94: 82 | E94: =IFERROR(IF($D94<>"",E93+(I93/CalPerPond)*IF(Doelgewicht="TOENAME",1,-1),""),"") -> 138.5 | F94: =IFERROR(LopendeBMR,"") -> 1403 | G94: =IFERROR(IF(K93>0,F93*Activiteitsfactor+IF(Doelgewicht="Aanhouden",0,IF(Doelgewicht="AFNEEMT",-500,IF(Doelgewicht="TOENAME",500))),""),"") -> 1676 | H94: =IFERROR(F94*(Activiteitsfactor),"") -> 2175 | I94: =IFERROR(IF(Doelgewicht="TOENAME",G94-H94,H94-G94),"") -> 499 | J94: 12078 | K94: =IFERROR(IF(Standaard,J94/CalPerPond,J94/CalPerPond/2.2),"") -> 3.5 | L94: =IFERROR(Gewichtsverandering-K94,"") -> 11.55 | M94: =IFERROR(IF(B93<>"",L94/(Gewichtsverandering),""),"") -> 77%
B95: 2024-07-03 | D95: 83 | E95: =IFERROR(IF($D95<>"",E94+(I94/CalPerPond)*IF(Doelgewicht="TOENAME",1,-1),""),"") -> 138.3 | F95: =IFERROR(LopendeBMR,"") -> 1402 | G95: =IFERROR(IF(K94>0,F94*Activiteitsfactor+IF(Doelgewicht="Aanhouden",0,IF(Doelgewicht="AFNEEMT",-500,IF(Doelgewicht="TOENAME",500))),""),"") -> 1675 | H95: =IFERROR(F95*(Activiteitsfactor),"") -> 2174 | I95: =IFERROR(IF(Doelgewicht="TOENAME",G95-H95,H95-G95),"") -> 499 | J95: 11579 | K95: =IFERROR(IF(Standaard,J95/CalPerPond,J95/CalPerPond/2.2),"") -> 3.3 | L95: =IFERROR(Gewichtsverandering-K95,"") -> 11.69 | M95: =IFERROR(IF(B94<>"",L95/(Gewichtsverandering),""),"") -> 78%
B96: 2024-07-04 | D96: 84 | E96: =IFERROR(IF($D96<>"",E95+(I95/CalPerPond)*IF(Doelgewicht="TOENAME",1,-1),""),"") -> 138.2 | F96: =IFERROR(LopendeBMR,"") -> 1402 | G96: =IFERROR(IF(K95>0,F95*Activiteitsfactor+IF(Doelgewicht="Aanhouden",0,IF(Doelgewicht="AFNEEMT",-500,IF(Doelgewicht="TOENAME",500))),""),"") -> 1674 | H96: =IFERROR(F96*(Activiteitsfactor),"") -> 2173 | I96: =IFERROR(IF(Doelgewicht="TOENAME",G96-H96,H96-G96),"") -> 499 | J96: 11080 | K96: =IFERROR(IF(Standaard,J96/CalPerPond,J96/CalPerPond/2.2),"") -> 3.2 | L96: =IFERROR(Gewichtsverandering-K96,"") -> 11.83 | M96: =IFERROR(IF(B95<>"",L96/(Gewichtsverandering),""),"") -> 79%
B97: 2024-07-05 | C97: 13 | D97: 85 | E97: =IFERROR(IF($D97<>"",E96+(I96/CalPerPond)*IF(Doelgewicht="TOENAME",1,-1),""),"") -> 138.0 | F97: =IFERROR(LopendeBMR,"") -> 1401 | G97: =IFERROR(IF(K96>0,F96*Activiteitsfactor+IF(Doelgewicht="Aanhouden",0,IF(Doelgewicht="AFNEEMT",-500,IF(Doelgewicht="TOENAME",500))),""),"") -> 1673 | H97: =IFERROR(F97*(Activiteitsfactor),"") -> 2172 | I97: =IFERROR(IF(Doelgewicht="TOENAME",G97-H97,H97-G97),"") -> 499 | J97: 10581 | K97: =IFERROR(IF(Standaard,J97/CalPerPond,J97/CalPerPond/2.2),"") -> 3.0 | L97: =IFERROR(Gewichtsverandering-K97,"") -> 11.98 | M97: =IFERROR(IF(B96<>"",L97/(Gewichtsverandering),""),"") -> 80%
B98: 2024-07-06 | D98: 86 | E98: =IFERROR(IF($D98<>"",E97+(I97/CalPerPond)*IF(Doelgewicht="TOENAME",1,-1),""),"") -> 137.9 | F98: =IFERROR(LopendeBMR,"") -> 1400 | G98: =IFERROR(IF(K97>0,F97*Activiteitsfactor+IF(Doelgewicht="Aanhouden",0,IF(Doelgewicht="AFNEEMT",-500,IF(Doelgewicht="TOENAME",500))),""),"") -> 1672 | H98: =IFERROR(F98*(Activiteitsfactor),"") -> 2171 | I98: =IFERROR(IF(Doelgewicht="TOENAME",G98-H98,H98-G98),"") -> 499 | J98: 10082 | K98: =IFERROR(IF(Standaard,J98/CalPerPond,J98/CalPerPond/2.2),"") -> 2.9 | L98: =IFERROR(Gewichtsverandering-K98,"") -> 12.12 | M98: =IFERROR(IF(B97<>"",L98/(Gewichtsverandering),""),"") -> 81%
B99: 2024-07-07 | D99: 87 | E99: =IFERROR(IF($D99<>"",E98+(I98/CalPerPond)*IF(Doelgewicht="TOENAME",1,-1),""),"") -> 137.7 | F99: =IFERROR(LopendeBMR,"") -> 1400 | G99: =IFERROR(IF(K98>0,F98*Activiteitsfactor+IF(Doelgewicht="Aanhouden",0,IF(Doelgewicht="AFNEEMT",-500,IF(Doelgewicht="TOENAME",500))),""),"") -> 1671 | H99: =IFERROR(F99*(Activiteitsfactor),"") -> 2170 | I99: =IFERROR(IF(Doelgewicht="TOENAME",G99-H99,H99-G99),"") -> 499 | J99: 9583 | K99: =IFERROR(IF(Standaard,J99/CalPerPond,J99/CalPerPond/2.2),"") -> 2.7 | L99: =IFERROR(Gewichtsverandering-K99,"") -> 12.26 | M99: =IFERROR(IF(B98<>"",L99/(Gewichtsverandering),""),"") -> 82%
B100: 2024-07-08 | D100: 88 | E100: =IFERROR(IF($D100<>"",E99+(I99/CalPerPond)*IF(Doelgewicht="TOENAME",1,-1),""),"") -> 137.6 | F100: =IFERROR(LopendeBMR,"") -> 1399 | G100: =IFERROR(IF(K99>0,F99*Activiteitsfactor+IF(Doelgewicht="Aanhouden",0,IF(Doelgewicht="AFNEEMT",-500,IF(Doelgewicht="TOENAME",500))),""),"") -> 1670 | H100: =IFERROR(F100*(Activiteitsfactor),"") -> 2169 | I100: =IFERROR(IF(Doelgewicht="TOENAME",G100-H100,H100-G100),"") -> 499 | J100: 9084 | K100: =IFERROR(IF(Standaard,J100/CalPerPond,J100/CalPerPond/2.2),"") -> 2.6 | L100: =IFERROR(Gewichtsverandering-K100,"") -> 12.40 | M100: =IFERROR(IF(B99<>"",L100/(Gewichtsverandering),""),"") -> 83%
B101: 2024-07-09 | D101: 89 | E101: =IFERROR(IF($D101<>"",E100+(I100/CalPerPond)*IF(Doelgewicht="TOENAME",1,-1),""),"") -> 137.5 | F101: =IFERROR(LopendeBMR,"") -> 1399 | G101: =IFERROR(IF(K100>0,F100*Activiteitsfactor+IF(Doelgewicht="Aanhouden",0,IF(Doelgewicht="AFNEEMT",-500,IF(Doelgewicht="TOENAME",500))),""),"") -> 1669 | H101: =IFERROR(F101*(Activiteitsfactor),"") -> 2168 | I101: =IFERROR(IF(Doelgewicht="TOENAME",G101-H101,H101-G101),"") -> 499 | J101: 8585 | K101: =IFERROR(IF(Standaard,J101/CalPerPond,J101/CalPerPond/2.2),"") -> 2.5 | L101: =IFERROR(Gewichtsverandering-K101,"") -> 12.55 | M101: =IFERROR(IF(B100<>"",L101/(Gewichtsverandering),""),"") -> 84%
B102: 2024-07-10 | D102: 90 | E102: =IFERROR(IF($D102<>"",E101+(I101/CalPerPond)*IF(Doelgewicht="TOENAME",1,-1),""),"") -> 137.3 | F102: =IFERROR(LopendeBMR,"") -> 1398 | G102: =IFERROR(IF(K101>0,F101*Activiteitsfactor+IF(Doelgewicht="Aanhouden",0,IF(Doelgewicht="AFNEEMT",-500,IF(Doelgewicht="TOENAME",500))),""),"") -> 1668 | H102: =IFERROR(F102*(Activiteitsfactor),"") -> 2167 | I102: =IFERROR(IF(Doelgewicht="TOENAME",G102-H102,H102-G102),"") -> 499 | J102: 8086 | K102: =IFERROR(IF(Standaard,J102/CalPerPond,J102/CalPerPond/2.2),"") -> 2.3 | L102: =IFERROR(Gewichtsverandering-K102,"") -> 12.69 | M102: =IFERROR(IF(B101<>"",L102/(Gewichtsverandering),""),"") -> 85%
B103: 2024-07-11 | D103: 91 | E103: =IFERROR(IF($D103<>"",E102+(I102/CalPerPond)*IF(Doelgewicht="TOENAME",1,-1),""),"") -> 137.2 | F103: =IFERROR(LopendeBMR,"") -> 1397 | G103: =IFERROR(IF(K102>0,F102*Activiteitsfactor+IF(Doelgewicht="Aanhouden",0,IF(Doelgewicht="AFNEEMT",-500,IF(Doelgewicht="TOENAME",500))),""),"") -> 1667 | H103: =IFERROR(F103*(Activiteitsfactor),"") -> 2166 | I103: =IFERROR(IF(Doelgewicht="TOENAME",G103-H103,H103-G103),"") -> 499 | J103: 7587 | K103: =IFERROR(IF(Standaard,J103/CalPerPond,J103/CalPerPond/2.2),"") -> 2.2 | L103: =IFERROR(Gewichtsverandering-K103,"") -> 12.83 | M103: =IFERROR(IF(B102<>"",L103/(Gewichtsverandering),""),"") -> 86%
B104: 2024-07-12 | C104: 14 | D104: 92 | E104: =IFERROR(IF($D104<>"",E103+(I103/CalPerPond)*IF(Doelgewicht="TOENAME",1,-1),""),"") -> 137.0 | F104: =IFERROR(LopendeBMR,"") -> 1397 | G104: =IFERROR(IF(K103>0,F103*Activiteitsfactor+IF(Doelgewicht="Aanhouden",0,IF(Doelgewicht="AFNEEMT",-500,IF(Doelgewicht="TOENAME",500))),""),"") -> 1666 | H104: =IFERROR(F104*(Activiteitsfactor),"") -> 2165 | I104: =IFERROR(IF(Doelgewicht="TOENAME",G104-H104,H104-G104),"") -> 499 | J104: 7087 | K104: =IFERROR(IF(Standaard,J104/CalPerPond,J104/CalPerPond/2.2),"") -> 2.0 | L104: =IFERROR(Gewichtsverandering-K104,"") -> 12.98 | M104: =IFERROR(IF(B103<>"",L104/(Gewichtsverandering),""),"") -> 87%
B105: 2024-07-13 | D105: 93 | E105: =IFERROR(IF($D105<>"",E104+(I104/CalPerPond)*IF(Doelgewicht="TOENAME",1,-1),""),"") -> 136.9 | F105: =IFERROR(LopendeBMR,"") -> 1396 | G105: =IFERROR(IF(K104>0,F104*Activiteitsfactor+IF(Doelgewicht="Aanhouden",0,IF(Doelgewicht="AFNEEMT",-500,IF(Doelgewicht="TOENAME",500))),""),"") -> 1665 | H105: =IFERROR(F105*(Activiteitsfactor),"") -> 2164 | I105: =IFERROR(IF(Doelgewicht="TOENAME",G105-H105,H105-G105),"") -> 499 | J105: 6588 | K105: =IFERROR(IF(Standaard,J105/CalPerPond,J105/CalPerPond/2.2),"") -> 1.9 | L105: =IFERROR(Gewichtsverandering-K105,"") -> 13.12 | M105: =IFERROR(IF(B104<>"",L105/(Gewichtsverandering),""),"") -> 87%
B106: 2024-07-14 | D106: 94 | E106: =IFERROR(IF($D106<>"",E105+(I105/CalPerPond)*IF(Doelgewicht="TOENAME",1,-1),""),"") -> 136.7 | F106: =IFERROR(LopendeBMR,"") -> 1396 | G106: =IFERROR(IF(K105>0,F105*Activiteitsfactor+IF(Doelgewicht="Aanhouden",0,IF(Doelgewicht="AFNEEMT",-500,IF(Doelgewicht="TOENAME",500))),""),"") -> 1664 | H106: =IFERROR(F106*(Activiteitsfactor),"") -> 2163 | I106: =IFERROR(IF(Doelgewicht="TOENAME",G106-H106,H106-G106),"") -> 499 | J106: 6089 | K106: =IFERROR(IF(Standaard,J106/CalPerPond,J106/CalPerPond/2.2),"") -> 1.7 | L106: =IFERROR(Gewichtsverandering-K106,"") -> 13.26 | M106: =IFERROR(IF(B105<>"",L106/(Gewichtsverandering),""),"") -> 88%
B107: 2024-07-15 | D107: 95 | E107: =IFERROR(IF($D107<>"",E106+(I106/CalPerPond)*IF(Doelgewicht="TOENAME",1,-1),""),"") -> 136.6 | F107: =IFERROR(LopendeBMR,"") -> 1395 | G107: =IFERROR(IF(K106>0,F106*Activiteitsfactor+IF(Doelgewicht="Aanhouden",0,IF(Doelgewicht="AFNEEMT",-500,IF(Doelgewicht="TOENAME",500))),""),"") -> 1663 | H107: =IFERROR(F107*(Activiteitsfactor),"") -> 2162 | I107: =IFERROR(IF(Doelgewicht="TOENAME",G107-H107,H107-G107),"") -> 499 | J107: 5590 | K107: =IFERROR(IF(Standaard,J107/CalPerPond,J107/CalPerPond/2.2),"") -> 1.6 | L107: =IFERROR(Gewichtsverandering-K107,"") -> 13.40 | M107: =IFERROR(IF(B106<>"",L107/(Gewichtsverandering),""),"") -> 89%
B108: 2024-07-16 | D108: 96 | E108: =IFERROR(IF($D108<>"",E107+(I107/CalPerPond)*IF(Doelgewicht="TOENAME",1,-1),""),"") -> 136.5 | F108: =IFERROR(LopendeBMR,"") -> 1394 | G108: =IFERROR(IF(K107>0,F107*Activiteitsfactor+IF(Doelgewicht="Aanhouden",0,IF(Doelgewicht="AFNEEMT",-500,IF(Doelgewicht="TOENAME",500))),""),"") -> 1662 | H108: =IFERROR(F108*(Activiteitsfactor),"") -> 2161 | I108: =IFERROR(IF(Doelgewicht="TOENAME",G108-H108,H108-G108),"") -> 499 | J108: 5091 | K108: =IFERROR(IF(Standaard,J108/CalPerPond,J108/CalPerPond/2.2),"") -> 1.5 | L108: =IFERROR(Gewichtsverandering-K108,"") -> 13.55 | M108: =IFERROR(IF(B107<>"",L108/(Gewichtsverandering),""),"") -> 90%
B109: 2024-07-17 | D109: 97 | E109: =IFERROR(IF($D109<>"",E108+(I108/CalPerPond)*IF(Doelgewicht="TOENAME",1,-1),""),"") -> 136.3 | F109: =IFERROR(LopendeBMR,"") -> 1394 | G109: =IFERROR(IF(K108>0,F108*Activiteitsfactor+IF(Doelgewicht="Aanhouden",0,IF(Doelgewicht="AFNEEMT",-500,IF(Doelgewicht="TOENAME",500))),""),"") -> 1661 | H109: =IFERROR(F109*(Activiteitsfactor),"") -> 2160 | I109: =IFERROR(IF(Doelgewicht="TOENAME",G109-H109,H109-G109),"") -> 499 | J109: 4592 | K109: =IFERROR(IF(Standaard,J109/CalPerPond,J109/CalPerPond/2.2),"") -> 1.3 | L109: =IFERROR(Gewichtsverandering-K109,"") -> 13.69 | M109: =IFERROR(IF(B108<>"",L109/(Gewichtsverandering),""),"") -> 91%
B110: 2024-07-18 | D110: 98 | E110: =IFERROR(IF($D110<>"",E109+(I109/CalPerPond)*IF(Doelgewicht="TOENAME",1,-1),""),"") -> 136.2 | F110: =IFERROR(LopendeBMR,"") -> 1393 | G110: =IFERROR(IF(K109>0,F109*Activiteitsfactor+IF(Doelgewicht="Aanhouden",0,IF(Doelgewicht="AFNEEMT",-500,IF(Doelgewicht="TOENAME",500))),""),"") -> 1660 | H110: =IFERROR(F110*(Activiteitsfactor),"") -> 2159 | I110: =IFERROR(IF(Doelgewicht="TOENAME",G110-H110,H110-G110),"") -> 499 | J110: 4093 | K110: =IFERROR(IF(Standaard,J110/CalPerPond,J110/CalPerPond/2.2),"") -> 1.2 | L110: =IFERROR(Gewichtsverandering-K110,"") -> 13.83 | M110: =IFERROR(IF(B109<>"",L110/(Gewichtsverandering),""),"") -> 92%
B111: 2024-07-19 | C111: 15 | D111: 99 | E111: =IFERROR(IF($D111<>"",E110+(I110/CalPerPond)*IF(Doelgewicht="TOENAME",1,-1),""),"") -> 136.0 | F111: =IFERROR(LopendeBMR,"") -> 1392 | G111: =IFERROR(IF(K110>0,F110*Activiteitsfactor+IF(Doelgewicht="Aanhouden",0,IF(Doelgewicht="AFNEEMT",-500,IF(Doelgewicht="TOENAME",500))),""),"") -> 1659 | H111: =IFERROR(F111*(Activiteitsfactor),"") -> 2158 | I111: =IFERROR(IF(Doelgewicht="TOENAME",G111-H111,H111-G111),"") -> 499 | J111: 3594 | K111: =IFERROR(IF(Standaard,J111/CalPerPond,J111/CalPerPond/2.2),"") -> 1.0 | L111: =IFERROR(Gewichtsverandering-K111,"") -> 13.97 | M111: =IFERROR(IF(B110<>"",L111/(Gewichtsverandering),""),"") -> 93%
B112: 2024-07-20 | D112: 100 | E112: =IFERROR(IF($D112<>"",E111+(I111/CalPerPond)*IF(Doelgewicht="TOENAME",1,-1),""),"") -> 135.9 | F112: =IFERROR(LopendeBMR,"") -> 1392 | G112: =IFERROR(IF(K111>0,F111*Activiteitsfactor+IF(Doelgewicht="Aanhouden",0,IF(Doelgewicht="AFNEEMT",-500,IF(Doelgewicht="TOENAME",500))),""),"") -> 1658 | H112: =IFERROR(F112*(Activiteitsfactor),"") -> 2157 | I112: =IFERROR(IF(Doelgewicht="TOENAME",G112-H112,H112-G112),"") -> 499 | J112: 3095 | K112: =IFERROR(IF(Standaard,J112/CalPerPond,J112/CalPerPond/2.2),"") -> 0.9 | L112: =IFERROR(Gewichtsverandering-K112,"") -> 14.12 | M112: =IFERROR(IF(B111<>"",L112/(Gewichtsverandering),""),"") -> 94%
B113: 2024-07-21 | D113: 101 | E113: =IFERROR(IF($D113<>"",E112+(I112/CalPerPond)*IF(Doelgewicht="TOENAME",1,-1),""),"") -> 135.7 | F113: =IFERROR(LopendeBMR,"") -> 1391 | G113: =IFERROR(IF(K112>0,F112*Activiteitsfactor+IF(Doelgewicht="Aanhouden",0,IF(Doelgewicht="AFNEEMT",-500,IF(Doelgewicht="TOENAME",500))),""),"") -> 1657 | H113: =IFERROR(F113*(Activiteitsfactor),"") -> 2156 | I113: =IFERROR(IF(Doelgewicht="TOENAME",G113-H113,H113-G113),"") -> 499 | J113: 2596 | K113: =IFERROR(IF(Standaard,J113/CalPerPond,J113/CalPerPond/2.2),"") -> 0.7 | L113: =IFERROR(Gewichtsverandering-K113,"") -> 14.26 | M113: =IFERROR(IF(B112<>"",L113/(Gewichtsverandering),""),"") -> 95%
B114: 2024-07-22 | D114: 102 | E114: =IFERROR(IF($D114<>"",E113+(I113/CalPerPond)*IF(Doelgewicht="TOENAME",1,-1),""),"") -> 135.6 | F114: =IFERROR(LopendeBMR,"") -> 1391 | G114: =IFERROR(IF(K113>0,F113*Activiteitsfactor+IF(Doelgewicht="Aanhouden",0,IF(Doelgewicht="AFNEEMT",-500,IF(Doelgewicht="TOENAME",500))),""),"") -> 1656 | H114: =IFERROR(F114*(Activiteitsfactor),"") -> 2155 | I114: =IFERROR(IF(Doelgewicht="TOENAME",G114-H114,H114-G114),"") -> 499 | J114: 2097 | K114: =IFERROR(IF(Standaard,J114/CalPerPond,J114/CalPerPond/2.2),"") -> 0.6 | L114: =IFERROR(Gewichtsverandering-K114,"") -> 14.40 | M114: =IFERROR(IF(B113<>"",L114/(Gewichtsverandering),""),"") -> 96%
B115: 2024-07-23 | D115: 103 | E115: =IFERROR(IF($D115<>"",E114+(I114/CalPerPond)*IF(Doelgewicht="TOENAME",1,-1),""),"") -> 135.5 | F115: =IFERROR(LopendeBMR,"") -> 1390 | G115: =IFERROR(IF(K114>0,F114*Activiteitsfactor+IF(Doelgewicht="Aanhouden",0,IF(Doelgewicht="AFNEEMT",-500,IF(Doelgewicht="TOENAME",500))),""),"") -> 1655 | H115: =IFERROR(F115*(Activiteitsfactor),"") -> 2154 | I115: =IFERROR(IF(Doelgewicht="TOENAME",G115-H115,H115-G115),"") -> 499 | J115: 1598 | K115: =IFERROR(IF(Standaard,J115/CalPerPond,J115/CalPerPond/2.2),"") -> 0.5 | L115: =IFERROR(Gewichtsverandering-K115,"") -> 14.54 | M115: =IFERROR(IF(B114<>"",L115/(Gewichtsverandering),""),"") -> 97%
B116: 2024-07-24 | D116: 104 | E116: =IFERROR(IF($D116<>"",E115+(I115/CalPerPond)*IF(Doelgewicht="TOENAME",1,-1),""),"") -> 135.3 | F116: =IFERROR(LopendeBMR,"") -> 1389 | G116: =IFERROR(IF(K115>0,F115*Activiteitsfactor+IF(Doelgewicht="Aanhouden",0,IF(Doelgewicht="AFNEEMT",-500,IF(Doelgewicht="TOENAME",500))),""),"") -> 1654 | H116: =IFERROR(F116*(Activiteitsfactor),"") -> 2153 | I116: =IFERROR(IF(Doelgewicht="TOENAME",G116-H116,H116-G116),"") -> 499 | J116: 1099 | K116: =IFERROR(IF(Standaard,J116/CalPerPond,J116/CalPerPond/2.2),"") -> 0.3 | L116: =IFERROR(Gewichtsverandering-K116,"") -> 14.69 | M116: =IFERROR(IF(B115<>"",L116/(Gewichtsverandering),""),"") -> 98%
B117: 2024-07-25 | D117: 105 | E117: =IFERROR(IF($D117<>"",E116+(I116/CalPerPond)*IF(Doelgewicht="TOENAME",1,-1),""),"") -> 135.2 | F117: =IFERROR(LopendeBMR,"") -> 1389 | G117: =IFERROR(IF(K116>0,F116*Activiteitsfactor+IF(Doelgewicht="Aanhouden",0,IF(Doelgewicht="AFNEEMT",-500,IF(Doelgewicht="TOENAME",500))),""),"") -> 1653 | H117: =IFERROR(F117*(Activiteitsfactor),"") -> 2152 | I117: =IFERROR(IF(Doelgewicht="TOENAME",G117-H117,H117-G117),"") -> 499 | J117: 600 | K117: =IFERROR(IF(Standaard,J117/CalPerPond,J117/CalPerPond/2.2),"") -> 0.2 | L117: =IFERROR(Gewichtsverandering-K117,"") -> 14.83 | M117: =IFERROR(IF(B116<>"",L117/(Gewichtsverandering),""),"") -> 99%
B118: 2024-07-26 | C118: 16 | D118: 106 | E118: =IFERROR(IF($D118<>"",E117+(I117/CalPerPond)*IF(Doelgewicht="TOENAME",1,-1),""),"") -> 135.0 | F118: =IFERROR(LopendeBMR,"") -> 1388 | G118: =IFERROR(IF(K117>0,F117*Activiteitsfactor+IF(Doelgewicht="Aanhouden",0,IF(Doelgewicht="AFNEEMT",-500,IF(Doelgewicht="TOENAME",500))),""),"") -> 1652 | H118: =IFERROR(F118*(Activiteitsfactor),"") -> 2152 | I118: =IFERROR(IF(Doelgewicht="TOENAME",G118-H118,H118-G118),"") -> 499 | J118: 101 | K118: =IFERROR(IF(Standaard,J118/CalPerPond,J118/CalPerPond/2.2),"") -> 0.0 | L118: =IFERROR(Gewichtsverandering-K118,"") -> 14.97 | M118: =IFERROR(IF(B117<>"",L118/(Gewichtsverandering),""),"") -> 100%
B119: 2024-07-27 | D119: 107 | E119: =IFERROR(IF($D119<>"",E118+(I118/CalPerPond)*IF(Doelgewicht="TOENAME",1,-1),""),"") -> 134.9 | F119: =IFERROR(LopendeBMR,"") -> 1387 | G119: =IFERROR(IF(K118>0,F118*Activiteitsfactor+IF(Doelgewicht="Aanhouden",0,IF(Doelgewicht="AFNEEMT",-500,IF(Doelgewicht="TOENAME",500))),""),"") -> 1652 | H119: =IFERROR(F119*(Activiteitsfactor),"") -> 2151 | I119: =IFERROR(IF(Doelgewicht="TOENAME",G119-H119,H119-G119),"") -> 499 | J119: -398 | K119: =IFERROR(IF(Standaard,J119/CalPerPond,J119/CalPerPond/2.2),"") -> -0.1 | L119: =IFERROR(Gewichtsverandering-K119,"") -> 15.11 | M119: =IFERROR(IF(B118<>"",L119/(Gewichtsverandering),""),"") -> 101%
E120: =IFERROR(IF($D120<>"",E119+(I119/CalPerPond)*IF(Doelgewicht="TOENAME",1,-1),""),"") ->  | F120: =IFERROR(LopendeBMR,"") ->  | G120: =IFERROR(IF(K119>0,F119*Activiteitsfactor+IF(Doelgewicht="Aanhouden",0,IF(Doelgewicht="AFNEEMT",-500,IF(Doelgewicht="TOENAME",500))),""),"") ->  | H120: =IFERROR(F120*(Activiteitsfactor),"") ->  | I120: =IFERROR(IF(Doelgewicht="TOENAME",G120-H120,H120-G120),"") ->  | K120: =IFERROR(IF(Standaard,J120/CalPerPond,J120/CalPerPond/2.2),"") ->  | L120: =IFERROR(Gewichtsverandering-K120,"") ->  | M120: =IFERROR(IF(B119<>"",L120/(Gewichtsverandering),""),"") -> 
E121: =IFERROR(IF($D121<>"",E120+(I120/CalPerPond)*IF(Doelgewicht="TOENAME",1,-1),""),"") ->  | F121: =IFERROR(LopendeBMR,"") ->  | G121: =IFERROR(IF(K120>0,F120*Activiteitsfactor+IF(Doelgewicht="Aanhouden",0,IF(Doelgewicht="AFNEEMT",-500,IF(Doelgewicht="TOENAME",500))),""),"") ->  | H121: =IFERROR(F121*(Activiteitsfactor),"") ->  | I121: =IFERROR(IF(Doelgewicht="TOENAME",G121-H121,H121-G121),"") ->  | K121: =IFERROR(IF(Standaard,J121/CalPerPond,J121/CalPerPond/2.2),"") ->  | L121: =IFERROR(Gewichtsverandering-K121,"") ->  | M121: =IFERROR(IF(B120<>"",L121/(Gewichtsverandering),""),"") -> 
E122: =IFERROR(IF($D122<>"",E121+(I121/CalPerPond)*IF(Doelgewicht="TOENAME",1,-1),""),"") ->  | F122: =IFERROR(LopendeBMR,"") ->  | G122: =IFERROR(IF(K121>0,F121*Activiteitsfactor+IF(Doelgewicht="Aanhouden",0,IF(Doelgewicht="AFNEEMT",-500,IF(Doelgewicht="TOENAME",500))),""),"") ->  | H122: =IFERROR(F122*(Activiteitsfactor),"") ->  | I122: =IFERROR(IF(Doelgewicht="TOENAME",G122-H122,H122-G122),"") ->  | K122: =IFERROR(IF(Standaard,J122/CalPerPond,J122/CalPerPond/2.2),"") ->  | L122: =IFERROR(Gewichtsverandering-K122,"") ->  | M122: =IFERROR(IF(B121<>"",L122/(Gewichtsverandering),""),"") -> 
E123: =IFERROR(IF($D123<>"",E122+(I122/CalPerPond)*IF(Doelgewicht="TOENAME",1,-1),""),"") ->  | F123: =IFERROR(LopendeBMR,"") ->  | G123: =IFERROR(IF(K122>0,F122*Activiteitsfactor+IF(Doelgewicht="Aanhouden",0,IF(Doelgewicht="AFNEEMT",-500,IF(Doelgewicht="TOENAME",500))),""),"") ->  | H123: =IFERROR(F123*(Activiteitsfactor),"") ->  | I123: =IFERROR(IF(Doelgewicht="TOENAME",G123-H123,H123-G123),"") ->  | K123: =IFERROR(IF(Standaard,J123/CalPerPond,J123/CalPerPond/2.2),"") ->  | L123: =IFERROR(Gewichtsverandering-K123,"") ->  | M123: =IFERROR(IF(B122<>"",L123/(Gewichtsverandering),""),"") -> 
E124: =IFERROR(IF($D124<>"",E123+(I123/CalPerPond)*IF(Doelgewicht="TOENAME",1,-1),""),"") ->  | F124: =IFERROR(LopendeBMR,"") ->  | G124: =IFERROR(IF(K123>0,F123*Activiteitsfactor+IF(Doelgewicht="Aanhouden",0,IF(Doelgewicht="AFNEEMT",-500,IF(Doelgewicht="TOENAME",500))),""),"") ->  | H124: =IFERROR(F124*(Activiteitsfactor),"") ->  | I124: =IFERROR(IF(Doelgewicht="TOENAME",G124-H124,H124-G124),"") ->  | K124: =IFERROR(IF(Standaard,J124/CalPerPond,J124/CalPerPond/2.2),"") ->  | L124: =IFERROR(Gewichtsverandering-K124,"") ->  | M124: =IFERROR(IF(B123<>"",L124/(Gewichtsverandering),""),"") -> 
E125: =IFERROR(IF($D125<>"",E124+(I124/CalPerPond)*IF(Doelgewicht="TOENAME",1,-1),""),"") ->  | F125: =IFERROR(LopendeBMR,"") ->  | G125: =IFERROR(IF(K124>0,F124*Activiteitsfactor+IF(Doelgewicht="Aanhouden",0,IF(Doelgewicht="AFNEEMT",-500,IF(Doelgewicht="TOENAME",500))),""),"") ->  | H125: =IFERROR(F125*(Activiteitsfactor),"") ->  | I125: =IFERROR(IF(Doelgewicht="TOENAME",G125-H125,H125-G125),"") ->  | K125: =IFERROR(IF(Standaard,J125/CalPerPond,J125/CalPerPond/2.2),"") ->  | L125: =IFERROR(Gewichtsverandering-K125,"") ->  | M125: =IFERROR(IF(B124<>"",L125/(Gewichtsverandering),""),"") -> 
E126: =IFERROR(IF($D126<>"",E125+(I125/CalPerPond)*IF(Doelgewicht="TOENAME",1,-1),""),"") ->  | F126: =IFERROR(LopendeBMR,"") ->  | G126: =IFERROR(IF(K125>0,F125*Activiteitsfactor+IF(Doelgewicht="Aanhouden",0,IF(Doelgewicht="AFNEEMT",-500,IF(Doelgewicht="TOENAME",500))),""),"") ->  | H126: =IFERROR(F126*(Activiteitsfactor),"") ->  | I126: =IFERROR(IF(Doelgewicht="TOENAME",G126-H126,H126-G126),"") ->  | K126: =IFERROR(IF(Standaard,J126/CalPerPond,J126/CalPerPond/2.2),"") ->  | L126: =IFERROR(Gewichtsverandering-K126,"") ->  | M126: =IFERROR(IF(B125<>"",L126/(Gewichtsverandering),""),"") -> 
E127: =IFERROR(IF($D127<>"",E126+(I126/CalPerPond)*IF(Doelgewicht="TOENAME",1,-1),""),"") ->  | F127: =IFERROR(LopendeBMR,"") ->  | G127: =IFERROR(IF(K126>0,F126*Activiteitsfactor+IF(Doelgewicht="Aanhouden",0,IF(Doelgewicht="AFNEEMT",-500,IF(Doelgewicht="TOENAME",500))),""),"") ->  | H127: =IFERROR(F127*(Activiteitsfactor),"") ->  | I127: =IFERROR(IF(Doelgewicht="TOENAME",G127-H127,H127-G127),"") ->  | K127: =IFERROR(IF(Standaard,J127/CalPerPond,J127/CalPerPond/2.2),"") ->  | L127: =IFERROR(Gewichtsverandering-K127,"") ->  | M127: =IFERROR(IF(B126<>"",L127/(Gewichtsverandering),""),"") -> 
E128: =IFERROR(IF($D128<>"",E127+(I127/CalPerPond)*IF(Doelgewicht="TOENAME",1,-1),""),"") ->  | F128: =IFERROR(LopendeBMR,"") ->  | G128: =IFERROR(IF(K127>0,F127*Activiteitsfactor+IF(Doelgewicht="Aanhouden",0,IF(Doelgewicht="AFNEEMT",-500,IF(Doelgewicht="TOENAME",500))),""),"") ->  | H128: =IFERROR(F128*(Activiteitsfactor),"") ->  | I128: =IFERROR(IF(Doelgewicht="TOENAME",G128-H128,H128-G128),"") ->  | K128: =IFERROR(IF(Standaard,J128/CalPerPond,J128/CalPerPond/2.2),"") ->  | L128: =IFERROR(Gewichtsverandering-K128,"") ->  | M128: =IFERROR(IF(B127<>"",L128/(Gewichtsverandering),""),"") -> 
E129: =IFERROR(IF($D129<>"",E128+(I128/CalPerPond)*IF(Doelgewicht="TOENAME",1,-1),""),"") ->  | F129: =IFERROR(LopendeBMR,"") ->  | G129: =IFERROR(IF(K128>0,F128*Activiteitsfactor+IF(Doelgewicht="Aanhouden",0,IF(Doelgewicht="AFNEEMT",-500,IF(Doelgewicht="TOENAME",500))),""),"") ->  | H129: =IFERROR(F129*(Activiteitsfactor),"") ->  | I129: =IFERROR(IF(Doelgewicht="TOENAME",G129-H129,H129-G129),"") ->  | K129: =IFERROR(IF(Standaard,J129/CalPerPond,J129/CalPerPond/2.2),"") ->  | L129: =IFERROR(Gewichtsverandering-K129,"") ->  | M129: =IFERROR(IF(B128<>"",L129/(Gewichtsverandering),""),"") -> 
E130: =IFERROR(IF($D130<>"",E129+(I129/CalPerPond)*IF(Doelgewicht="TOENAME",1,-1),""),"") ->  | F130: =IFERROR(LopendeBMR,"") ->  | G130: =IFERROR(IF(K129>0,F129*Activiteitsfactor+IF(Doelgewicht="Aanhouden",0,IF(Doelgewicht="AFNEEMT",-500,IF(Doelgewicht="TOENAME",500))),""),"") ->  | H130: =IFERROR(F130*(Activiteitsfactor),"") ->  | I130: =IFERROR(IF(Doelgewicht="TOENAME",G130-H130,H130-G130),"") ->  | K130: =IFERROR(IF(Standaard,J130/CalPerPond,J130/CalPerPond/2.2),"") ->  | L130: =IFERROR(Gewichtsverandering-K130,"") ->  | M130: =IFERROR(IF(B129<>"",L130/(Gewichtsverandering),""),"") -> 
E131: =IFERROR(IF($D131<>"",E130+(I130/CalPerPond)*IF(Doelgewicht="TOENAME",1,-1),""),"") ->  | F131: =IFERROR(LopendeBMR,"") ->  | G131: =IFERROR(IF(K130>0,F130*Activiteitsfactor+IF(Doelgewicht="Aanhouden",0,IF(Doelgewicht="AFNEEMT",-500,IF(Doelgewicht="TOENAME",500))),""),"") ->  | H131: =IFERROR(F131*(Activiteitsfactor),"") ->  | I131: =IFERROR(IF(Doelgewicht="TOENAME",G131-H131,H131-G131),"") ->  | K131: =IFERROR(IF(Standaard,J131/CalPerPond,J131/CalPerPond/2.2),"") ->  | L131: =IFERROR(Gewichtsverandering-K131,"") ->  | M131: =IFERROR(IF(B130<>"",L131/(Gewichtsverandering),""),"") -> 
E132: =IFERROR(IF($D132<>"",E131+(I131/CalPerPond)*IF(Doelgewicht="TOENAME",1,-1),""),"") ->  | F132: =IFERROR(LopendeBMR,"") ->  | G132: =IFERROR(IF(K131>0,F131*Activiteitsfactor+IF(Doelgewicht="Aanhouden",0,IF(Doelgewicht="AFNEEMT",-500,IF(Doelgewicht="TOENAME",500))),""),"") ->  | H132: =IFERROR(F132*(Activiteitsfactor),"") ->  | I132: =IFERROR(IF(Doelgewicht="TOENAME",G132-H132,H132-G132),"") ->  | K132: =IFERROR(IF(Standaard,J132/CalPerPond,J132/CalPerPond/2.2),"") ->  | L132: =IFERROR(Gewichtsverandering-K132,"") ->  | M132: =IFERROR(IF(B131<>"",L132/(Gewichtsverandering),""),"") -> 
E133: =IFERROR(IF($D133<>"",E132+(I132/CalPerPond)*IF(Doelgewicht="TOENAME",1,-1),""),"") ->  | F133: =IFERROR(LopendeBMR,"") ->  | G133: =IFERROR(IF(K132>0,F132*Activiteitsfactor+IF(Doelgewicht="Aanhouden",0,IF(Doelgewicht="AFNEEMT",-500,IF(Doelgewicht="TOENAME",500))),""),"") ->  | H133: =IFERROR(F133*(Activiteitsfactor),"") ->  | I133: =IFERROR(IF(Doelgewicht="TOENAME",G133-H133,H133-G133),"") ->  | K133: =IFERROR(IF(Standaard,J133/CalPerPond,J133/CalPerPond/2.2),"") ->  | L133: =IFERROR(Gewichtsverandering-K133,"") ->  | M133: =IFERROR(IF(B132<>"",L133/(Gewichtsverandering),""),"") -> 
E134: =IFERROR(IF($D134<>"",E133+(I133/CalPerPond)*IF(Doelgewicht="TOENAME",1,-1),""),"") ->  | F134: =IFERROR(LopendeBMR,"") ->  | G134: =IFERROR(IF(K133>0,F133*Activiteitsfactor+IF(Doelgewicht="Aanhouden",0,IF(Doelgewicht="AFNEEMT",-500,IF(Doelgewicht="TOENAME",500))),""),"") ->  | H134: =IFERROR(F134*(Activiteitsfactor),"") ->  | I134: =IFERROR(IF(Doelgewicht="TOENAME",G134-H134,H134-G134),"") ->  | K134: =IFERROR(IF(Standaard,J134/CalPerPond,J134/CalPerPond/2.2),"") ->  | L134: =IFERROR(Gewichtsverandering-K134,"") ->  | M134: =IFERROR(IF(B133<>"",L134/(Gewichtsverandering),""),"") -> 
E135: =IFERROR(IF($D135<>"",E134+(I134/CalPerPond)*IF(Doelgewicht="TOENAME",1,-1),""),"") ->  | F135: =IFERROR(LopendeBMR,"") ->  | G135: =IFERROR(IF(K134>0,F134*Activiteitsfactor+IF(Doelgewicht="Aanhouden",0,IF(Doelgewicht="AFNEEMT",-500,IF(Doelgewicht="TOENAME",500))),""),"") ->  | H135: =IFERROR(F135*(Activiteitsfactor),"") ->  | I135: =IFERROR(IF(Doelgewicht="TOENAME",G135-H135,H135-G135),"") ->  | K135: =IFERROR(IF(Standaard,J135/CalPerPond,J135/CalPerPond/2.2),"") ->  | L135: =IFERROR(Gewichtsverandering-K135,"") ->  | M135: =IFERROR(IF(B134<>"",L135/(Gewichtsverandering),""),"") -> 
E136: =IFERROR(IF($D136<>"",E135+(I135/CalPerPond)*IF(Doelgewicht="TOENAME",1,-1),""),"") ->  | F136: =IFERROR(LopendeBMR,"") ->  | G136: =IFERROR(IF(K135>0,F135*Activiteitsfactor+IF(Doelgewicht="Aanhouden",0,IF(Doelgewicht="AFNEEMT",-500,IF(Doelgewicht="TOENAME",500))),""),"") ->  | H136: =IFERROR(F136*(Activiteitsfactor),"") ->  | I136: =IFERROR(IF(Doelgewicht="TOENAME",G136-H136,H136-G136),"") ->  | K136: =IFERROR(IF(Standaard,J136/CalPerPond,J136/CalPerPond/2.2),"") ->  | L136: =IFERROR(Gewichtsverandering-K136,"") ->  | M136: =IFERROR(IF(B135<>"",L136/(Gewichtsverandering),""),"") -> 
E137: =IFERROR(IF($D137<>"",E136+(I136/CalPerPond)*IF(Doelgewicht="TOENAME",1,-1),""),"") ->  | F137: =IFERROR(LopendeBMR,"") ->  | G137: =IFERROR(IF(K136>0,F136*Activiteitsfactor+IF(Doelgewicht="Aanhouden",0,IF(Doelgewicht="AFNEEMT",-500,IF(Doelgewicht="TOENAME",500))),""),"") ->  | H137: =IFERROR(F137*(Activiteitsfactor),"") ->  | I137: =IFERROR(IF(Doelgewicht="TOENAME",G137-H137,H137-G137),"") ->  | K137: =IFERROR(IF(Standaard,J137/CalPerPond,J137/CalPerPond/2.2),"") ->  | L137: =IFERROR(Gewichtsverandering-K137,"") ->  | M137: =IFERROR(IF(B136<>"",L137/(Gewichtsverandering),""),"") -> 
E138: =IFERROR(IF($D138<>"",E137+(I137/CalPerPond)*IF(Doelgewicht="TOENAME",1,-1),""),"") ->  | F138: =IFERROR(LopendeBMR,"") ->  | G138: =IFERROR(IF(K137>0,F137*Activiteitsfactor+IF(Doelgewicht="Aanhouden",0,IF(Doelgewicht="AFNEEMT",-500,IF(Doelgewicht="TOENAME",500))),""),"") ->  | H138: =IFERROR(F138*(Activiteitsfactor),"") ->  | I138: =IFERROR(IF(Doelgewicht="TOENAME",G138-H138,H138-G138),"") ->  | K138: =IFERROR(IF(Standaard,J138/CalPerPond,J138/CalPerPond/2.2),"") ->  | L138: =IFERROR(Gewichtsverandering-K138,"") ->  | M138: =IFERROR(IF(B137<>"",L138/(Gewichtsverandering),""),"") -> 
E139: =IFERROR(IF($D139<>"",E138+(I138/CalPerPond)*IF(Doelgewicht="TOENAME",1,-1),""),"") ->  | F139: =IFERROR(LopendeBMR,"") ->  | G139: =IFERROR(IF(K138>0,F138*Activiteitsfactor+IF(Doelgewicht="Aanhouden",0,IF(Doelgewicht="AFNEEMT",-500,IF(Doelgewicht="TOENAME",500))),""),"") ->  | H139: =IFERROR(F139*(Activiteitsfactor),"") ->  | I139: =IFERROR(IF(Doelgewicht="TOENAME",G139-H139,H139-G139),"") ->  | K139: =IFERROR(IF(Standaard,J139/CalPerPond,J139/CalPerPond/2.2),"") ->  | L139: =IFERROR(Gewichtsverandering-K139,"") ->  | M139: =IFERROR(IF(B138<>"",L139/(Gewichtsverandering),""),"") -> 
E140: =IFERROR(IF($D140<>"",E139+(I139/CalPerPond)*IF(Doelgewicht="TOENAME",1,-1),""),"") ->  | F140: =IFERROR(LopendeBMR,"") ->  | G140: =IFERROR(IF(K139>0,F139*Activiteitsfactor+IF(Doelgewicht="Aanhouden",0,IF(Doelgewicht="AFNEEMT",-500,IF(Doelgewicht="TOENAME",500))),""),"") ->  | H140: =IFERROR(F140*(Activiteitsfactor),"") ->  | I140: =IFERROR(IF(Doelgewicht="TOENAME",G140-H140,H140-G140),"") ->  | K140: =IFERROR(IF(Standaard,J140/CalPerPond,J140/CalPerPond/2.2),"") ->  | L140: =IFERROR(Gewichtsverandering-K140,"") ->  | M140: =IFERROR(IF(B139<>"",L140/(Gewichtsverandering),""),"") -> 
E141: =IFERROR(IF($D141<>"",E140+(I140/CalPerPond)*IF(Doelgewicht="TOENAME",1,-1),""),"") ->  | F141: =IFERROR(LopendeBMR,"") ->  | G141: =IFERROR(IF(K140>0,F140*Activiteitsfactor+IF(Doelgewicht="Aanhouden",0,IF(Doelgewicht="AFNEEMT",-500,IF(Doelgewicht="TOENAME",500))),""),"") ->  | H141: =IFERROR(F141*(Activiteitsfactor),"") ->  | I141: =IFERROR(IF(Doelgewicht="TOENAME",G141-H141,H141-G141),"") ->  | K141: =IFERROR(IF(Standaard,J141/CalPerPond,J141/CalPerPond/2.2),"") ->  | L141: =IFERROR(Gewichtsverandering-K141,"") ->  | M141: =IFERROR(IF(B140<>"",L141/(Gewichtsverandering),""),"") -> 
B142: =IFERROR(IF(K141>0,B141+1,""),"") ->  | D142: =IFERROR(IF(K141>0,D141+1,""),"") ->  | E142: =IFERROR(IF($D142<>"",E141+(I141/CalPerPond)*IF(Doelgewicht="TOENAME",1,-1),""),"") ->  | F142: =IFERROR(LopendeBMR,"") ->  | G142: =IFERROR(IF(K141>0,F141*Activiteitsfactor+IF(Doelgewicht="Aanhouden",0,IF(Doelgewicht="AFNEEMT",-500,IF(Doelgewicht="TOENAME",500))),""),"") ->  | H142: =IFERROR(F142*(Activiteitsfactor),"") ->  | I142: =IFERROR(IF(Doelgewicht="TOENAME",G142-H142,H142-G142),"") ->  | K142: =IFERROR(IF(Standaard,J142/CalPerPond,J142/CalPerPond/2.2),"") ->  | L142: =IFERROR(Gewichtsverandering-K142,"") ->  | M142: =IFERROR(IF(B141<>"",L142/(Gewichtsverandering),""),"") -> 
C143: =IFERROR(IF(D143<>"",IF(MOD(D143,7)=1,(D142/7)+1,""),""),"") ->  | E143: =IFERROR(IF($D143<>"",E142+(I142/CalPerPond)*IF(Doelgewicht="TOENAME",1,-1),""),"") ->  | F143: =IFERROR(LopendeBMR,"") ->  | G143: =IFERROR(IF(K142>0,F142*Activiteitsfactor+IF(Doelgewicht="Aanhouden",0,IF(Doelgewicht="AFNEEMT",-500,IF(Doelgewicht="TOENAME",500))),""),"") ->  | H143: =IFERROR(F143*(Activiteitsfactor),"") ->  | I143: =IFERROR(IF(Doelgewicht="TOENAME",G143-H143,H143-G143),"") ->  | J143: =IFERROR(J142-I143,"") ->  | K143: =IFERROR(IF(Standaard,J143/CalPerPond,J143/CalPerPond/2.2),"") ->  | L143: =IFERROR(Gewichtsverandering-K143,"") ->  | M143: =IFERROR(IF(B142<>"",L143/(Gewichtsverandering),""),"") -> 
E144: =IFERROR(IF($D144<>"",E143+(I143/CalPerPond)*IF(Doelgewicht="TOENAME",1,-1),""),"") ->  | F144: =IFERROR(LopendeBMR,"") ->  | G144: =IFERROR(IF(K143>0,F143*Activiteitsfactor+IF(Doelgewicht="Aanhouden",0,IF(Doelgewicht="AFNEEMT",-500,IF(Doelgewicht="TOENAME",500))),""),"") ->  | H144: =IFERROR(F144*(Activiteitsfactor),"") ->  | I144: =IFERROR(IF(Doelgewicht="TOENAME",G144-H144,H144-G144),"") ->  | K144: =IFERROR(IF(Standaard,J144/CalPerPond,J144/CalPerPond/2.2),"") ->  | L144: =IFERROR(Gewichtsverandering-K144,"") ->  | M144: =IFERROR(IF(B143<>"",L144/(Gewichtsverandering),""),"") -> 
E145: =IFERROR(IF($D145<>"",E144+(I144/CalPerPond)*IF(Doelgewicht="TOENAME",1,-1),""),"") ->  | F145: =IFERROR(LopendeBMR,"") ->  | G145: =IFERROR(IF(K144>0,F144*Activiteitsfactor+IF(Doelgewicht="Aanhouden",0,IF(Doelgewicht="AFNEEMT",-500,IF(Doelgewicht="TOENAME",500))),""),"") ->  | H145: =IFERROR(F145*(Activiteitsfactor),"") ->  | I145: =IFERROR(IF(Doelgewicht="TOENAME",G145-H145,H145-G145),"") ->  | K145: =IFERROR(IF(Standaard,J145/CalPerPond,J145/CalPerPond/2.2),"") ->  | L145: =IFERROR(Gewichtsverandering-K145,"") ->  | M145: =IFERROR(IF(B144<>"",L145/(Gewichtsverandering),""),"") -> 
E146: =IFERROR(IF($D146<>"",E145+(I145/CalPerPond)*IF(Doelgewicht="TOENAME",1,-1),""),"") ->  | F146: =IFERROR(LopendeBMR,"") ->  | G146: =IFERROR(IF(K145>0,F145*Activiteitsfactor+IF(Doelgewicht="Aanhouden",0,IF(Doelgewicht="AFNEEMT",-500,IF(Doelgewicht="TOENAME",500))),""),"") ->  | H146: =IFERROR(F146*(Activiteitsfactor),"") ->  | I146: =IFERROR(IF(Doelgewicht="TOENAME",G146-H146,H146-G146),"") ->  | K146: =IFERROR(IF(Standaard,J146/CalPerPond,J146/CalPerPond/2.2),"") ->  | L146: =IFERROR(Gewichtsverandering-K146,"") ->  | M146: =IFERROR(IF(B145<>"",L146/(Gewichtsverandering),""),"") -> 
E147: =IFERROR(IF($D147<>"",E146+(I146/CalPerPond)*IF(Doelgewicht="TOENAME",1,-1),""),"") ->  | F147: =IFERROR(LopendeBMR,"") ->  | G147: =IFERROR(IF(K146>0,F146*Activiteitsfactor+IF(Doelgewicht="Aanhouden",0,IF(Doelgewicht="AFNEEMT",-500,IF(Doelgewicht="TOENAME",500))),""),"") ->  | H147: =IFERROR(F147*(Activiteitsfactor),"") ->  | I147: =IFERROR(IF(Doelgewicht="TOENAME",G147-H147,H147-G147),"") ->  | K147: =IFERROR(IF(Standaard,J147/CalPerPond,J147/CalPerPond/2.2),"") ->  | L147: =IFERROR(Gewichtsverandering-K147,"") ->  | M147: =IFERROR(IF(B146<>"",L147/(Gewichtsverandering),""),"") -> 
E148: =IFERROR(IF($D148<>"",E147+(I147/CalPerPond)*IF(Doelgewicht="TOENAME",1,-1),""),"") ->  | F148: =IFERROR(LopendeBMR,"") ->  | G148: =IFERROR(IF(K147>0,F147*Activiteitsfactor+IF(Doelgewicht="Aanhouden",0,IF(Doelgewicht="AFNEEMT",-500,IF(Doelgewicht="TOENAME",500))),""),"") ->  | H148: =IFERROR(F148*(Activiteitsfactor),"") ->  | I148: =IFERROR(IF(Doelgewicht="TOENAME",G148-H148,H148-G148),"") ->  | K148: =IFERROR(IF(Standaard,J148/CalPerPond,J148/CalPerPond/2.2),"") ->  | L148: =IFERROR(Gewichtsverandering-K148,"") ->  | M148: =IFERROR(IF(B147<>"",L148/(Gewichtsverandering),""),"") -> 
E149: =IFERROR(IF($D149<>"",E148+(I148/CalPerPond)*IF(Doelgewicht="TOENAME",1,-1),""),"") ->  | F149: =IFERROR(LopendeBMR,"") ->  | G149: =IFERROR(IF(K148>0,F148*Activiteitsfactor+IF(Doelgewicht="Aanhouden",0,IF(Doelgewicht="AFNEEMT",-500,IF(Doelgewicht="TOENAME",500))),""),"") ->  | H149: =IFERROR(F149*(Activiteitsfactor),"") ->  | I149: =IFERROR(IF(Doelgewicht="TOENAME",G149-H149,H149-G149),"") ->  | K149: =IFERROR(IF(Standaard,J149/CalPerPond,J149/CalPerPond/2.2),"") ->  | L149: =IFERROR(Gewichtsverandering-K149,"") ->  | M149: =IFERROR(IF(B148<>"",L149/(Gewichtsverandering),""),"") -> 
E150: =IFERROR(IF($D150<>"",E149+(I149/CalPerPond)*IF(Doelgewicht="TOENAME",1,-1),""),"") ->  | F150: =IFERROR(LopendeBMR,"") ->  | G150: =IFERROR(IF(K149>0,F149*Activiteitsfactor+IF(Doelgewicht="Aanhouden",0,IF(Doelgewicht="AFNEEMT",-500,IF(Doelgewicht="TOENAME",500))),""),"") ->  | H150: =IFERROR(F150*(Activiteitsfactor),"") ->  | I150: =IFERROR(IF(Doelgewicht="TOENAME",G150-H150,H150-G150),"") ->  | K150: =IFERROR(IF(Standaard,J150/CalPerPond,J150/CalPerPond/2.2),"") ->  | L150: =IFERROR(Gewichtsverandering-K150,"") ->  | M150: =IFERROR(IF(B149<>"",L150/(Gewichtsverandering),""),"") -> 
E151: =IFERROR(IF($D151<>"",E150+(I150/CalPerPond)*IF(Doelgewicht="TOENAME",1,-1),""),"") ->  | F151: =IFERROR(LopendeBMR,"") ->  | G151: =IFERROR(IF(K150>0,F150*Activiteitsfactor+IF(Doelgewicht="Aanhouden",0,IF(Doelgewicht="AFNEEMT",-500,IF(Doelgewicht="TOENAME",500))),""),"") ->  | H151: =IFERROR(F151*(Activiteitsfactor),"") ->  | I151: =IFERROR(IF(Doelgewicht="TOENAME",G151-H151,H151-G151),"") ->  | K151: =IFERROR(IF(Standaard,J151/CalPerPond,J151/CalPerPond/2.2),"") ->  | L151: =IFERROR(Gewichtsverandering-K151,"") ->  | M151: =IFERROR(IF(B150<>"",L151/(Gewichtsverandering),""),"") -> 
E152: =IFERROR(IF($D152<>"",E151+(I151/CalPerPond)*IF(Doelgewicht="TOENAME",1,-1),""),"") ->  | F152: =IFERROR(LopendeBMR,"") ->  | G152: =IFERROR(IF(K151>0,F151*Activiteitsfactor+IF(Doelgewicht="Aanhouden",0,IF(Doelgewicht="AFNEEMT",-500,IF(Doelgewicht="TOENAME",500))),""),"") ->  | H152: =IFERROR(F152*(Activiteitsfactor),"") ->  | I152: =IFERROR(IF(Doelgewicht="TOENAME",G152-H152,H152-G152),"") ->  | K152: =IFERROR(IF(Standaard,J152/CalPerPond,J152/CalPerPond/2.2),"") ->  | L152: =IFERROR(Gewichtsverandering-K152,"") ->  | M152: =IFERROR(IF(B151<>"",L152/(Gewichtsverandering),""),"") -> 
E153: =IFERROR(IF($D153<>"",E152+(I152/CalPerPond)*IF(Doelgewicht="TOENAME",1,-1),""),"") ->  | F153: =IFERROR(LopendeBMR,"") ->  | G153: =IFERROR(IF(K152>0,F152*Activiteitsfactor+IF(Doelgewicht="Aanhouden",0,IF(Doelgewicht="AFNEEMT",-500,IF(Doelgewicht="TOENAME",500))),""),"") ->  | H153: =IFERROR(F153*(Activiteitsfactor),"") ->  | I153: =IFERROR(IF(Doelgewicht="TOENAME",G153-H153,H153-G153),"") ->  | K153: =IFERROR(IF(Standaard,J153/CalPerPond,J153/CalPerPond/2.2),"") ->  | L153: =IFERROR(Gewichtsverandering-K153,"") ->  | M153: =IFERROR(IF(B152<>"",L153/(Gewichtsverandering),""),"") -> 
E154: =IFERROR(IF($D154<>"",E153+(I153/CalPerPond)*IF(Doelgewicht="TOENAME",1,-1),""),"") ->  | F154: =IFERROR(LopendeBMR,"") ->  | G154: =IFERROR(IF(K153>0,F153*Activiteitsfactor+IF(Doelgewicht="Aanhouden",0,IF(Doelgewicht="AFNEEMT",-500,IF(Doelgewicht="TOENAME",500))),""),"") ->  | H154: =IFERROR(F154*(Activiteitsfactor),"") ->  | I154: =IFERROR(IF(Doelgewicht="TOENAME",G154-H154,H154-G154),"") ->  | K154: =IFERROR(IF(Standaard,J154/CalPerPond,J154/CalPerPond/2.2),"") ->  | L154: =IFERROR(Gewichtsverandering-K154,"") ->  | M154: =IFERROR(IF(B153<>"",L154/(Gewichtsverandering),""),"") -> 
E155: =IFERROR(IF($D155<>"",E154+(I154/CalPerPond)*IF(Doelgewicht="TOENAME",1,-1),""),"") ->  | F155: =IFERROR(LopendeBMR,"") ->  | G155: =IFERROR(IF(K154>0,F154*Activiteitsfactor+IF(Doelgewicht="Aanhouden",0,IF(Doelgewicht="AFNEEMT",-500,IF(Doelgewicht="TOENAME",500))),""),"") ->  | H155: =IFERROR(F155*(Activiteitsfactor),"") ->  | I155: =IFERROR(IF(Doelgewicht="TOENAME",G155-H155,H155-G155),"") ->  | K155: =IFERROR(IF(Standaard,J155/CalPerPond,J155/CalPerPond/2.2),"") ->  | L155: =IFERROR(Gewichtsverandering-K155,"") ->  | M155: =IFERROR(IF(B154<>"",L155/(Gewichtsverandering),""),"") -> 
E156: =IFERROR(IF($D156<>"",E155+(I155/CalPerPond)*IF(Doelgewicht="TOENAME",1,-1),""),"") ->  | F156: =IFERROR(LopendeBMR,"") ->  | G156: =IFERROR(IF(K155>0,F155*Activiteitsfactor+IF(Doelgewicht="Aanhouden",0,IF(Doelgewicht="AFNEEMT",-500,IF(Doelgewicht="TOENAME",500))),""),"") ->  | H156: =IFERROR(F156*(Activiteitsfactor),"") ->  | I156: =IFERROR(IF(Doelgewicht="TOENAME",G156-H156,H156-G156),"") ->  | K156: =IFERROR(IF(Standaard,J156/CalPerPond,J156/CalPerPond/2.2),"") ->  | L156: =IFERROR(Gewichtsverandering-K156,"") ->  | M156: =IFERROR(IF(B155<>"",L156/(Gewichtsverandering),""),"") -> 
E157: =IFERROR(IF($D157<>"",E156+(I156/CalPerPond)*IF(Doelgewicht="TOENAME",1,-1),""),"") ->  | F157: =IFERROR(LopendeBMR,"") ->  | G157: =IFERROR(IF(K156>0,F156*Activiteitsfactor+IF(Doelgewicht="Aanhouden",0,IF(Doelgewicht="AFNEEMT",-500,IF(Doelgewicht="TOENAME",500))),""),"") ->  | H157: =IFERROR(F157*(Activiteitsfactor),"") ->  | I157: =IFERROR(IF(Doelgewicht="TOENAME",G157-H157,H157-G157),"") ->  | K157: =IFERROR(IF(Standaard,J157/CalPerPond,J157/CalPerPond/2.2),"") ->  | L157: =IFERROR(Gewichtsverandering-K157,"") ->  | M157: =IFERROR(IF(B156<>"",L157/(Gewichtsverandering),""),"") -> 
E158: =IFERROR(IF($D158<>"",E157+(I157/CalPerPond)*IF(Doelgewicht="TOENAME",1,-1),""),"") ->  | F158: =IFERROR(LopendeBMR,"") ->  | G158: =IFERROR(IF(K157>0,F157*Activiteitsfactor+IF(Doelgewicht="Aanhouden",0,IF(Doelgewicht="AFNEEMT",-500,IF(Doelgewicht="TOENAME",500))),""),"") ->  | H158: =IFERROR(F158*(Activiteitsfactor),"") ->  | I158: =IFERROR(IF(Doelgewicht="TOENAME",G158-H158,H158-G158),"") ->  | K158: =IFERROR(IF(Standaard,J158/CalPerPond,J158/CalPerPond/2.2),"") ->  | L158: =IFERROR(Gewichtsverandering-K158,"") ->  | M158: =IFERROR(IF(B157<>"",L158/(Gewichtsverandering),""),"") -> 
E159: =IFERROR(IF($D159<>"",E158+(I158/CalPerPond)*IF(Doelgewicht="TOENAME",1,-1),""),"") ->  | F159: =IFERROR(LopendeBMR,"") ->  | G159: =IFERROR(IF(K158>0,F158*Activiteitsfactor+IF(Doelgewicht="Aanhouden",0,IF(Doelgewicht="AFNEEMT",-500,IF(Doelgewicht="TOENAME",500))),""),"") ->  | H159: =IFERROR(F159*(Activiteitsfactor),"") ->  | I159: =IFERROR(IF(Doelgewicht="TOENAME",G159-H159,H159-G159),"") ->  | K159: =IFERROR(IF(Standaard,J159/CalPerPond,J159/CalPerPond/2.2),"") ->  | L159: =IFERROR(Gewichtsverandering-K159,"") ->  | M159: =IFERROR(IF(B158<>"",L159/(Gewichtsverandering),""),"") -> 
E160: =IFERROR(IF($D160<>"",E159+(I159/CalPerPond)*IF(Doelgewicht="TOENAME",1,-1),""),"") ->  | F160: =IFERROR(LopendeBMR,"") ->  | G160: =IFERROR(IF(K159>0,F159*Activiteitsfactor+IF(Doelgewicht="Aanhouden",0,IF(Doelgewicht="AFNEEMT",-500,IF(Doelgewicht="TOENAME",500))),""),"") ->  | H160: =IFERROR(F160*(Activiteitsfactor),"") ->  | I160: =IFERROR(IF(Doelgewicht="TOENAME",G160-H160,H160-G160),"") ->  | K160: =IFERROR(IF(Standaard,J160/CalPerPond,J160/CalPerPond/2.2),"") ->  | L160: =IFERROR(Gewichtsverandering-K160,"") ->  | M160: =IFERROR(IF(B159<>"",L160/(Gewichtsverandering),""),"") -> 
E161: =IFERROR(IF($D161<>"",E160+(I160/CalPerPond)*IF(Doelgewicht="TOENAME",1,-1),""),"") ->  | F161: =IFERROR(LopendeBMR,"") ->  | G161: =IFERROR(IF(K160>0,F160*Activiteitsfactor+IF(Doelgewicht="Aanhouden",0,IF(Doelgewicht="AFNEEMT",-500,IF(Doelgewicht="TOENAME",500))),""),"") ->  | H161: =IFERROR(F161*(Activiteitsfactor),"") ->  | I161: =IFERROR(IF(Doelgewicht="TOENAME",G161-H161,H161-G161),"") ->  | K161: =IFERROR(IF(Standaard,J161/CalPerPond,J161/CalPerPond/2.2),"") ->  | L161: =IFERROR(Gewichtsverandering-K161,"") ->  | M161: =IFERROR(IF(B160<>"",L161/(Gewichtsverandering),""),"") -> 
E162: =IFERROR(IF($D162<>"",E161+(I161/CalPerPond)*IF(Doelgewicht="TOENAME",1,-1),""),"") ->  | F162: =IFERROR(LopendeBMR,"") ->  | G162: =IFERROR(IF(K161>0,F161*Activiteitsfactor+IF(Doelgewicht="Aanhouden",0,IF(Doelgewicht="AFNEEMT",-500,IF(Doelgewicht="TOENAME",500))),""),"") ->  | H162: =IFERROR(F162*(Activiteitsfactor),"") ->  | I162: =IFERROR(IF(Doelgewicht="TOENAME",G162-H162,H162-G162),"") ->  | K162: =IFERROR(IF(Standaard,J162/CalPerPond,J162/CalPerPond/2.2),"") ->  | L162: =IFERROR(Gewichtsverandering-K162,"") ->  | M162: =IFERROR(IF(B161<>"",L162/(Gewichtsverandering),""),"") -> 
E163: =IFERROR(IF($D163<>"",E162+(I162/CalPerPond)*IF(Doelgewicht="TOENAME",1,-1),""),"") ->  | F163: =IFERROR(LopendeBMR,"") ->  | G163: =IFERROR(IF(K162>0,F162*Activiteitsfactor+IF(Doelgewicht="Aanhouden",0,IF(Doelgewicht="AFNEEMT",-500,IF(Doelgewicht="TOENAME",500))),""),"") ->  | H163: =IFERROR(F163*(Activiteitsfactor),"") ->  | I163: =IFERROR(IF(Doelgewicht="TOENAME",G163-H163,H163-G163),"") ->  | K163: =IFERROR(IF(Standaard,J163/CalPerPond,J163/CalPerPond/2.2),"") ->  | L163: =IFERROR(Gewichtsverandering-K163,"") ->  | M163: =IFERROR(IF(B162<>"",L163/(Gewichtsverandering),""),"") -> 
E164: =IFERROR(IF($D164<>"",E163+(I163/CalPerPond)*IF(Doelgewicht="TOENAME",1,-1),""),"") ->  | F164: =IFERROR(LopendeBMR,"") ->  | G164: =IFERROR(IF(K163>0,F163*Activiteitsfactor+IF(Doelgewicht="Aanhouden",0,IF(Doelgewicht="AFNEEMT",-500,IF(Doelgewicht="TOENAME",500))),""),"") ->  | H164: =IFERROR(F164*(Activiteitsfactor),"") ->  | I164: =IFERROR(IF(Doelgewicht="TOENAME",G164-H164,H164-G164),"") ->  | K164: =IFERROR(IF(Standaard,J164/CalPerPond,J164/CalPerPond/2.2),"") ->  | L164: =IFERROR(Gewichtsverandering-K164,"") ->  | M164: =IFERROR(IF(B163<>"",L164/(Gewichtsverandering),""),"") -> 
E165: =IFERROR(IF($D165<>"",E164+(I164/CalPerPond)*IF(Doelgewicht="TOENAME",1,-1),""),"") ->  | F165: =IFERROR(LopendeBMR,"") ->  | G165: =IFERROR(IF(K164>0,F164*Activiteitsfactor+IF(Doelgewicht="Aanhouden",0,IF(Doelgewicht="AFNEEMT",-500,IF(Doelgewicht="TOENAME",500))),""),"") ->  | H165: =IFERROR(F165*(Activiteitsfactor),"") ->  | I165: =IFERROR(IF(Doelgewicht="TOENAME",G165-H165,H165-G165),"") ->  | K165: =IFERROR(IF(Standaard,J165/CalPerPond,J165/CalPerPond/2.2),"") ->  | L165: =IFERROR(Gewichtsverandering-K165,"") ->  | M165: =IFERROR(IF(B164<>"",L165/(Gewichtsverandering),""),"") -> 
E166: =IFERROR(IF($D166<>"",E165+(I165/CalPerPond)*IF(Doelgewicht="TOENAME",1,-1),""),"") ->  | F166: =IFERROR(LopendeBMR,"") ->  | G166: =IFERROR(IF(K165>0,F165*Activiteitsfactor+IF(Doelgewicht="Aanhouden",0,IF(Doelgewicht="AFNEEMT",-500,IF(Doelgewicht="TOENAME",500))),""),"") ->  | H166: =IFERROR(F166*(Activiteitsfactor),"") ->  | I166: =IFERROR(IF(Doelgewicht="TOENAME",G166-H166,H166-G166),"") ->  | K166: =IFERROR(IF(Standaard,J166/CalPerPond,J166/CalPerPond/2.2),"") ->  | L166: =IFERROR(Gewichtsverandering-K166,"") ->  | M166: =IFERROR(IF(B165<>"",L166/(Gewichtsverandering),""),"") -> 
E167: =IFERROR(IF($D167<>"",E166+(I166/CalPerPond)*IF(Doelgewicht="TOENAME",1,-1),""),"") ->  | F167: =IFERROR(LopendeBMR,"") ->  | G167: =IFERROR(IF(K166>0,F166*Activiteitsfactor+IF(Doelgewicht="Aanhouden",0,IF(Doelgewicht="AFNEEMT",-500,IF(Doelgewicht="TOENAME",500))),""),"") ->  | H167: =IFERROR(F167*(Activiteitsfactor),"") ->  | I167: =IFERROR(IF(Doelgewicht="TOENAME",G167-H167,H167-G167),"") ->  | K167: =IFERROR(IF(Standaard,J167/CalPerPond,J167/CalPerPond/2.2),"") ->  | L167: =IFERROR(Gewichtsverandering-K167,"") ->  | M167: =IFERROR(IF(B166<>"",L167/(Gewichtsverandering),""),"") -> 
E168: =IFERROR(IF($D168<>"",E167+(I167/CalPerPond)*IF(Doelgewicht="TOENAME",1,-1),""),"") ->  | F168: =IFERROR(LopendeBMR,"") ->  | G168: =IFERROR(IF(K167>0,F167*Activiteitsfactor+IF(Doelgewicht="Aanhouden",0,IF(Doelgewicht="AFNEEMT",-500,IF(Doelgewicht="TOENAME",500))),""),"") ->  | H168: =IFERROR(F168*(Activiteitsfactor),"") ->  | I168: =IFERROR(IF(Doelgewicht="TOENAME",G168-H168,H168-G168),"") ->  | K168: =IFERROR(IF(Standaard,J168/CalPerPond,J168/CalPerPond/2.2),"") ->  | L168: =IFERROR(Gewichtsverandering-K168,"") ->  | M168: =IFERROR(IF(B167<>"",L168/(Gewichtsverandering),""),"") -> 
E169: =IFERROR(IF($D169<>"",E168+(I168/CalPerPond)*IF(Doelgewicht="TOENAME",1,-1),""),"") ->  | F169: =IFERROR(LopendeBMR,"") ->  | G169: =IFERROR(IF(K168>0,F168*Activiteitsfactor+IF(Doelgewicht="Aanhouden",0,IF(Doelgewicht="AFNEEMT",-500,IF(Doelgewicht="TOENAME",500))),""),"") ->  | H169: =IFERROR(F169*(Activiteitsfactor),"") ->  | I169: =IFERROR(IF(Doelgewicht="TOENAME",G169-H169,H169-G169),"") ->  | K169: =IFERROR(IF(Standaard,J169/CalPerPond,J169/CalPerPond/2.2),"") ->  | L169: =IFERROR(Gewichtsverandering-K169,"") ->  | M169: =IFERROR(IF(B168<>"",L169/(Gewichtsverandering),""),"") -> 
E170: =IFERROR(IF($D170<>"",E169+(I169/CalPerPond)*IF(Doelgewicht="TOENAME",1,-1),""),"") ->  | F170: =IFERROR(LopendeBMR,"") ->  | G170: =IFERROR(IF(K169>0,F169*Activiteitsfactor+IF(Doelgewicht="Aanhouden",0,IF(Doelgewicht="AFNEEMT",-500,IF(Doelgewicht="TOENAME",500))),""),"") ->  | H170: =IFERROR(F170*(Activiteitsfactor),"") ->  | I170: =IFERROR(IF(Doelgewicht="TOENAME",G170-H170,H170-G170),"") ->  | K170: =IFERROR(IF(Standaard,J170/CalPerPond,J170/CalPerPond/2.2),"") ->  | L170: =IFERROR(Gewichtsverandering-K170,"") ->  | M170: =IFERROR(IF(B169<>"",L170/(Gewichtsverandering),""),"") -> 
E171: =IFERROR(IF($D171<>"",E170+(I170/CalPerPond)*IF(Doelgewicht="TOENAME",1,-1),""),"") ->  | F171: =IFERROR(LopendeBMR,"") ->  | G171: =IFERROR(IF(K170>0,F170*Activiteitsfactor+IF(Doelgewicht="Aanhouden",0,IF(Doelgewicht="AFNEEMT",-500,IF(Doelgewicht="TOENAME",500))),""),"") ->  | H171: =IFERROR(F171*(Activiteitsfactor),"") ->  | I171: =IFERROR(IF(Doelgewicht="TOENAME",G171-H171,H171-G171),"") ->  | K171: =IFERROR(IF(Standaard,J171/CalPerPond,J171/CalPerPond/2.2),"") ->  | L171: =IFERROR(Gewichtsverandering-K171,"") ->  | M171: =IFERROR(IF(B170<>"",L171/(Gewichtsverandering),""),"") -> 
E172: =IFERROR(IF($D172<>"",E171+(I171/CalPerPond)*IF(Doelgewicht="TOENAME",1,-1),""),"") ->  | F172: =IFERROR(LopendeBMR,"") ->  | G172: =IFERROR(IF(K171>0,F171*Activiteitsfactor+IF(Doelgewicht="Aanhouden",0,IF(Doelgewicht="AFNEEMT",-500,IF(Doelgewicht="TOENAME",500))),""),"") ->  | H172: =IFERROR(F172*(Activiteitsfactor),"") ->  | I172: =IFERROR(IF(Doelgewicht="TOENAME",G172-H172,H172-G172),"") ->  | K172: =IFERROR(IF(Standaard,J172/CalPerPond,J172/CalPerPond/2.2),"") ->  | L172: =IFERROR(Gewichtsverandering-K172,"") ->  | M172: =IFERROR(IF(B171<>"",L172/(Gewichtsverandering),""),"") -> 
E173: =IFERROR(IF($D173<>"",E172+(I172/CalPerPond)*IF(Doelgewicht="TOENAME",1,-1),""),"") ->  | F173: =IFERROR(LopendeBMR,"") ->  | G173: =IFERROR(IF(K172>0,F172*Activiteitsfactor+IF(Doelgewicht="Aanhouden",0,IF(Doelgewicht="AFNEEMT",-500,IF(Doelgewicht="TOENAME",500))),""),"") ->  | H173: =IFERROR(F173*(Activiteitsfactor),"") ->  | I173: =IFERROR(IF(Doelgewicht="TOENAME",G173-H173,H173-G173),"") ->  | K173: =IFERROR(IF(Standaard,J173/CalPerPond,J173/CalPerPond/2.2),"") ->  | L173: =IFERROR(Gewichtsverandering-K173,"") ->  | M173: =IFERROR(IF(B172<>"",L173/(Gewichtsverandering),""),"") -> 
E174: =IFERROR(IF($D174<>"",E173+(I173/CalPerPond)*IF(Doelgewicht="TOENAME",1,-1),""),"") ->  | F174: =IFERROR(LopendeBMR,"") ->  | G174: =IFERROR(IF(K173>0,F173*Activiteitsfactor+IF(Doelgewicht="Aanhouden",0,IF(Doelgewicht="AFNEEMT",-500,IF(Doelgewicht="TOENAME",500))),""),"") ->  | H174: =IFERROR(F174*(Activiteitsfactor),"") ->  | I174: =IFERROR(IF(Doelgewicht="TOENAME",G174-H174,H174-G174),"") ->  | K174: =IFERROR(IF(Standaard,J174/CalPerPond,J174/CalPerPond/2.2),"") ->  | L174: =IFERROR(Gewichtsverandering-K174,"") ->  | M174: =IFERROR(IF(B173<>"",L174/(Gewichtsverandering),""),"") -> 
E175: =IFERROR(IF($D175<>"",E174+(I174/CalPerPond)*IF(Doelgewicht="TOENAME",1,-1),""),"") ->  | F175: =IFERROR(LopendeBMR,"") ->  | G175: =IFERROR(IF(K174>0,F174*Activiteitsfactor+IF(Doelgewicht="Aanhouden",0,IF(Doelgewicht="AFNEEMT",-500,IF(Doelgewicht="TOENAME",500))),""),"") ->  | H175: =IFERROR(F175*(Activiteitsfactor),"") ->  | I175: =IFERROR(IF(Doelgewicht="TOENAME",G175-H175,H175-G175),"") ->  | K175: =IFERROR(IF(Standaard,J175/CalPerPond,J175/CalPerPond/2.2),"") ->  | L175: =IFERROR(Gewichtsverandering-K175,"") ->  | M175: =IFERROR(IF(B174<>"",L175/(Gewichtsverandering),""),"") -> 
E176: =IFERROR(IF($D176<>"",E175+(I175/CalPerPond)*IF(Doelgewicht="TOENAME",1,-1),""),"") ->  | F176: =IFERROR(LopendeBMR,"") ->  | G176: =IFERROR(IF(K175>0,F175*Activiteitsfactor+IF(Doelgewicht="Aanhouden",0,IF(Doelgewicht="AFNEEMT",-500,IF(Doelgewicht="TOENAME",500))),""),"") ->  | H176: =IFERROR(F176*(Activiteitsfactor),"") ->  | I176: =IFERROR(IF(Doelgewicht="TOENAME",G176-H176,H176-G176),"") ->  | K176: =IFERROR(IF(Standaard,J176/CalPerPond,J176/CalPerPond/2.2),"") ->  | L176: =IFERROR(Gewichtsverandering-K176,"") ->  | M176: =IFERROR(IF(B175<>"",L176/(Gewichtsverandering),""),"") -> 
E177: =IFERROR(IF($D177<>"",E176+(I176/CalPerPond)*IF(Doelgewicht="TOENAME",1,-1),""),"") ->  | F177: =IFERROR(LopendeBMR,"") ->  | G177: =IFERROR(IF(K176>0,F176*Activiteitsfactor+IF(Doelgewicht="Aanhouden",0,IF(Doelgewicht="AFNEEMT",-500,IF(Doelgewicht="TOENAME",500))),""),"") ->  | H177: =IFERROR(F177*(Activiteitsfactor),"") ->  | I177: =IFERROR(IF(Doelgewicht="TOENAME",G177-H177,H177-G177),"") ->  | K177: =IFERROR(IF(Standaard,J177/CalPerPond,J177/CalPerPond/2.2),"") ->  | L177: =IFERROR(Gewichtsverandering-K177,"") ->  | M177: =IFERROR(IF(B176<>"",L177/(Gewichtsverandering),""),"") -> 
E178: =IFERROR(IF($D178<>"",E177+(I177/CalPerPond)*IF(Doelgewicht="TOENAME",1,-1),""),"") ->  | F178: =IFERROR(LopendeBMR,"") ->  | G178: =IFERROR(IF(K177>0,F177*Activiteitsfactor+IF(Doelgewicht="Aanhouden",0,IF(Doelgewicht="AFNEEMT",-500,IF(Doelgewicht="TOENAME",500))),""),"") ->  | H178: =IFERROR(F178*(Activiteitsfactor),"") ->  | I178: =IFERROR(IF(Doelgewicht="TOENAME",G178-H178,H178-G178),"") ->  | K178: =IFERROR(IF(Standaard,J178/CalPerPond,J178/CalPerPond/2.2),"") ->  | L178: =IFERROR(Gewichtsverandering-K178,"") ->  | M178: =IFERROR(IF(B177<>"",L178/(Gewichtsverandering),""),"") -> 
E179: =IFERROR(IF($D179<>"",E178+(I178/CalPerPond)*IF(Doelgewicht="TOENAME",1,-1),""),"") ->  | F179: =IFERROR(LopendeBMR,"") ->  | G179: =IFERROR(IF(K178>0,F178*Activiteitsfactor+IF(Doelgewicht="Aanhouden",0,IF(Doelgewicht="AFNEEMT",-500,IF(Doelgewicht="TOENAME",500))),""),"") ->  | H179: =IFERROR(F179*(Activiteitsfactor),"") ->  | I179: =IFERROR(IF(Doelgewicht="TOENAME",G179-H179,H179-G179),"") ->  | K179: =IFERROR(IF(Standaard,J179/CalPerPond,J179/CalPerPond/2.2),"") ->  | L179: =IFERROR(Gewichtsverandering-K179,"") ->  | M179: =IFERROR(IF(B178<>"",L179/(Gewichtsverandering),""),"") -> 
E180: =IFERROR(IF($D180<>"",E179+(I179/CalPerPond)*IF(Doelgewicht="TOENAME",1,-1),""),"") ->  | F180: =IFERROR(LopendeBMR,"") ->  | G180: =IFERROR(IF(K179>0,F179*Activiteitsfactor+IF(Doelgewicht="Aanhouden",0,IF(Doelgewicht="AFNEEMT",-500,IF(Doelgewicht="TOENAME",500))),""),"") ->  | H180: =IFERROR(F180*(Activiteitsfactor),"") ->  | I180: =IFERROR(IF(Doelgewicht="TOENAME",G180-H180,H180-G180),"") ->  | K180: =IFERROR(IF(Standaard,J180/CalPerPond,J180/CalPerPond/2.2),"") ->  | L180: =IFERROR(Gewichtsverandering-K180,"") ->  | M180: =IFERROR(IF(B179<>"",L180/(Gewichtsverandering),""),"") -> 
E181: =IFERROR(IF($D181<>"",E180+(I180/CalPerPond)*IF(Doelgewicht="TOENAME",1,-1),""),"") ->  | F181: =IFERROR(LopendeBMR,"") ->  | G181: =IFERROR(IF(K180>0,F180*Activiteitsfactor+IF(Doelgewicht="Aanhouden",0,IF(Doelgewicht="AFNEEMT",-500,IF(Doelgewicht="TOENAME",500))),""),"") ->  | H181: =IFERROR(F181*(Activiteitsfactor),"") ->  | I181: =IFERROR(IF(Doelgewicht="TOENAME",G181-H181,H181-G181),"") ->  | K181: =IFERROR(IF(Standaard,J181/CalPerPond,J181/CalPerPond/2.2),"") ->  | L181: =IFERROR(Gewichtsverandering-K181,"") ->  | M181: =IFERROR(IF(B180<>"",L181/(Gewichtsverandering),""),"") -> 
E182: =IFERROR(IF($D182<>"",E181+(I181/CalPerPond)*IF(Doelgewicht="TOENAME",1,-1),""),"") ->  | F182: =IFERROR(LopendeBMR,"") ->  | G182: =IFERROR(IF(K181>0,F181*Activiteitsfactor+IF(Doelgewicht="Aanhouden",0,IF(Doelgewicht="AFNEEMT",-500,IF(Doelgewicht="TOENAME",500))),""),"") ->  | H182: =IFERROR(F182*(Activiteitsfactor),"") ->  | I182: =IFERROR(IF(Doelgewicht="TOENAME",G182-H182,H182-G182),"") ->  | K182: =IFERROR(IF(Standaard,J182/CalPerPond,J182/CalPerPond/2.2),"") ->  | L182: =IFERROR(Gewichtsverandering-K182,"") ->  | M182: =IFERROR(IF(B181<>"",L182/(Gewichtsverandering),""),"") -> 
E183: =IFERROR(IF($D183<>"",E182+(I182/CalPerPond)*IF(Doelgewicht="TOENAME",1,-1),""),"") ->  | F183: =IFERROR(LopendeBMR,"") ->  | G183: =IFERROR(IF(K182>0,F182*Activiteitsfactor+IF(Doelgewicht="Aanhouden",0,IF(Doelgewicht="AFNEEMT",-500,IF(Doelgewicht="TOENAME",500))),""),"") ->  | H183: =IFERROR(F183*(Activiteitsfactor),"") ->  | I183: =IFERROR(IF(Doelgewicht="TOENAME",G183-H183,H183-G183),"") ->  | K183: =IFERROR(IF(Standaard,J183/CalPerPond,J183/CalPerPond/2.2),"") ->  | L183: =IFERROR(Gewichtsverandering-K183,"") ->  | M183: =IFERROR(IF(B182<>"",L183/(Gewichtsverandering),""),"") -> 
E184: =IFERROR(IF($D184<>"",E183+(I183/CalPerPond)*IF(Doelgewicht="TOENAME",1,-1),""),"") ->  | F184: =IFERROR(LopendeBMR,"") ->  | G184: =IFERROR(IF(K183>0,F183*Activiteitsfactor+IF(Doelgewicht="Aanhouden",0,IF(Doelgewicht="AFNEEMT",-500,IF(Doelgewicht="TOENAME",500))),""),"") ->  | H184: =IFERROR(F184*(Activiteitsfactor),"") ->  | I184: =IFERROR(IF(Doelgewicht="TOENAME",G184-H184,H184-G184),"") ->  | K184: =IFERROR(IF(Standaard,J184/CalPerPond,J184/CalPerPond/2.2),"") ->  | L184: =IFERROR(Gewichtsverandering-K184,"") ->  | M184: =IFERROR(IF(B183<>"",L184/(Gewichtsverandering),""),"") -> 
E185: =IFERROR(IF($D185<>"",E184+(I184/CalPerPond)*IF(Doelgewicht="TOENAME",1,-1),""),"") ->  | F185: =IFERROR(LopendeBMR,"") ->  | G185: =IFERROR(IF(K184>0,F184*Activiteitsfactor+IF(Doelgewicht="Aanhouden",0,IF(Doelgewicht="AFNEEMT",-500,IF(Doelgewicht="TOENAME",500))),""),"") ->  | H185: =IFERROR(F185*(Activiteitsfactor),"") ->  | I185: =IFERROR(IF(Doelgewicht="TOENAME",G185-H185,H185-G185),"") ->  | K185: =IFERROR(IF(Standaard,J185/CalPerPond,J185/CalPerPond/2.2),"") ->  | L185: =IFERROR(Gewichtsverandering-K185,"") ->  | M185: =IFERROR(IF(B184<>"",L185/(Gewichtsverandering),""),"") -> 
E186: =IFERROR(IF($D186<>"",E185+(I185/CalPerPond)*IF(Doelgewicht="TOENAME",1,-1),""),"") ->  | F186: =IFERROR(LopendeBMR,"") ->  | G186: =IFERROR(IF(K185>0,F185*Activiteitsfactor+IF(Doelgewicht="Aanhouden",0,IF(Doelgewicht="AFNEEMT",-500,IF(Doelgewicht="TOENAME",500))),""),"") ->  | H186: =IFERROR(F186*(Activiteitsfactor),"") ->  | I186: =IFERROR(IF(Doelgewicht="TOENAME",G186-H186,H186-G186),"") ->  | K186: =IFERROR(IF(Standaard,J186/CalPerPond,J186/CalPerPond/2.2),"") ->  | L186: =IFERROR(Gewichtsverandering-K186,"") ->  | M186: =IFERROR(IF(B185<>"",L186/(Gewichtsverandering),""),"") -> 
E187: =IFERROR(IF($D187<>"",E186+(I186/CalPerPond)*IF(Doelgewicht="TOENAME",1,-1),""),"") ->  | F187: =IFERROR(LopendeBMR,"") ->  | G187: =IFERROR(IF(K186>0,F186*Activiteitsfactor+IF(Doelgewicht="Aanhouden",0,IF(Doelgewicht="AFNEEMT",-500,IF(Doelgewicht="TOENAME",500))),""),"") ->  | H187: =IFERROR(F187*(Activiteitsfactor),"") ->  | I187: =IFERROR(IF(Doelgewicht="TOENAME",G187-H187,H187-G187),"") ->  | K187: =IFERROR(IF(Standaard,J187/CalPerPond,J187/CalPerPond/2.2),"") ->  | L187: =IFERROR(Gewichtsverandering-K187,"") ->  | M187: =IFERROR(IF(B186<>"",L187/(Gewichtsverandering),""),"") -> 
E188: =IFERROR(IF($D188<>"",E187+(I187/CalPerPond)*IF(Doelgewicht="TOENAME",1,-1),""),"") ->  | F188: =IFERROR(LopendeBMR,"") ->  | G188: =IFERROR(IF(K187>0,F187*Activiteitsfactor+IF(Doelgewicht="Aanhouden",0,IF(Doelgewicht="AFNEEMT",-500,IF(Doelgewicht="TOENAME",500))),""),"") ->  | H188: =IFERROR(F188*(Activiteitsfactor),"") ->  | I188: =IFERROR(IF(Doelgewicht="TOENAME",G188-H188,H188-G188),"") ->  | K188: =IFERROR(IF(Standaard,J188/CalPerPond,J188/CalPerPond/2.2),"") ->  | L188: =IFERROR(Gewichtsverandering-K188,"") ->  | M188: =IFERROR(IF(B187<>"",L188/(Gewichtsverandering),""),"") -> 
E189: =IFERROR(IF($D189<>"",E188+(I188/CalPerPond)*IF(Doelgewicht="TOENAME",1,-1),""),"") ->  | F189: =IFERROR(LopendeBMR,"") ->  | G189: =IFERROR(IF(K188>0,F188*Activiteitsfactor+IF(Doelgewicht="Aanhouden",0,IF(Doelgewicht="AFNEEMT",-500,IF(Doelgewicht="TOENAME",500))),""),"") ->  | H189: =IFERROR(F189*(Activiteitsfactor),"") ->  | I189: =IFERROR(IF(Doelgewicht="TOENAME",G189-H189,H189-G189),"") ->  | K189: =IFERROR(IF(Standaard,J189/CalPerPond,J189/CalPerPond/2.2),"") ->  | L189: =IFERROR(Gewichtsverandering-K189,"") ->  | M189: =IFERROR(IF(B188<>"",L189/(Gewichtsverandering),""),"") -> 
E190: =IFERROR(IF($D190<>"",E189+(I189/CalPerPond)*IF(Doelgewicht="TOENAME",1,-1),""),"") ->  | F190: =IFERROR(LopendeBMR,"") ->  | G190: =IFERROR(IF(K189>0,F189*Activiteitsfactor+IF(Doelgewicht="Aanhouden",0,IF(Doelgewicht="AFNEEMT",-500,IF(Doelgewicht="TOENAME",500))),""),"") ->  | H190: =IFERROR(F190*(Activiteitsfactor),"") ->  | I190: =IFERROR(IF(Doelgewicht="TOENAME",G190-H190,H190-G190),"") ->  | K190: =IFERROR(IF(Standaard,J190/CalPerPond,J190/CalPerPond/2.2),"") ->  | L190: =IFERROR(Gewichtsverandering-K190,"") ->  | M190: =IFERROR(IF(B189<>"",L190/(Gewichtsverandering),""),"") -> 
E191: =IFERROR(IF($D191<>"",E190+(I190/CalPerPond)*IF(Doelgewicht="TOENAME",1,-1),""),"") ->  | F191: =IFERROR(LopendeBMR,"") ->  | G191: =IFERROR(IF(K190>0,F190*Activiteitsfactor+IF(Doelgewicht="Aanhouden",0,IF(Doelgewicht="AFNEEMT",-500,IF(Doelgewicht="TOENAME",500))),""),"") ->  | H191: =IFERROR(F191*(Activiteitsfactor),"") ->  | I191: =IFERROR(IF(Doelgewicht="TOENAME",G191-H191,H191-G191),"") ->  | K191: =IFERROR(IF(Standaard,J191/CalPerPond,J191/CalPerPond/2.2),"") ->  | L191: =IFERROR(Gewichtsverandering-K191,"") ->  | M191: =IFERROR(IF(B190<>"",L191/(Gewichtsverandering),""),"") -> 
E192: =IFERROR(IF($D192<>"",E191+(I191/CalPerPond)*IF(Doelgewicht="TOENAME",1,-1),""),"") ->  | F192: =IFERROR(LopendeBMR,"") ->  | G192: =IFERROR(IF(K191>0,F191*Activiteitsfactor+IF(Doelgewicht="Aanhouden",0,IF(Doelgewicht="AFNEEMT",-500,IF(Doelgewicht="TOENAME",500))),""),"") ->  | H192: =IFERROR(F192*(Activiteitsfactor),"") ->  | I192: =IFERROR(IF(Doelgewicht="TOENAME",G192-H192,H192-G192),"") ->  | K192: =IFERROR(IF(Standaard,J192/CalPerPond,J192/CalPerPond/2.2),"") ->  | L192: =IFERROR(Gewichtsverandering-K192,"") ->  | M192: =IFERROR(IF(B191<>"",L192/(Gewichtsverandering),""),"") -> 
E193: =IFERROR(IF($D193<>"",E192+(I192/CalPerPond)*IF(Doelgewicht="TOENAME",1,-1),""),"") ->  | F193: =IFERROR(LopendeBMR,"") ->  | G193: =IFERROR(IF(K192>0,F192*Activiteitsfactor+IF(Doelgewicht="Aanhouden",0,IF(Doelgewicht="AFNEEMT",-500,IF(Doelgewicht="TOENAME",500))),""),"") ->  | H193: =IFERROR(F193*(Activiteitsfactor),"") ->  | I193: =IFERROR(IF(Doelgewicht="TOENAME",G193-H193,H193-G193),"") ->  | K193: =IFERROR(IF(Standaard,J193/CalPerPond,J193/CalPerPond/2.2),"") ->  | L193: =IFERROR(Gewichtsverandering-K193,"") ->  | M193: =IFERROR(IF(B192<>"",L193/(Gewichtsverandering),""),"") -> 
E194: =IFERROR(IF($D194<>"",E193+(I193/CalPerPond)*IF(Doelgewicht="TOENAME",1,-1),""),"") ->  | F194: =IFERROR(LopendeBMR,"") ->  | G194: =IFERROR(IF(K193>0,F193*Activiteitsfactor+IF(Doelgewicht="Aanhouden",0,IF(Doelgewicht="AFNEEMT",-500,IF(Doelgewicht="TOENAME",500))),""),"") ->  | H194: =IFERROR(F194*(Activiteitsfactor),"") ->  | I194: =IFERROR(IF(Doelgewicht="TOENAME",G194-H194,H194-G194),"") ->  | K194: =IFERROR(IF(Standaard,J194/CalPerPond,J194/CalPerPond/2.2),"") ->  | L194: =IFERROR(Gewichtsverandering-K194,"") ->  | M194: =IFERROR(IF(B193<>"",L194/(Gewichtsverandering),""),"") -> 
E195: =IFERROR(IF($D195<>"",E194+(I194/CalPerPond)*IF(Doelgewicht="TOENAME",1,-1),""),"") ->  | F195: =IFERROR(LopendeBMR,"") ->  | G195: =IFERROR(IF(K194>0,F194*Activiteitsfactor+IF(Doelgewicht="Aanhouden",0,IF(Doelgewicht="AFNEEMT",-500,IF(Doelgewicht="TOENAME",500))),""),"") ->  | H195: =IFERROR(F195*(Activiteitsfactor),"") ->  | I195: =IFERROR(IF(Doelgewicht="TOENAME",G195-H195,H195-G195),"") ->  | K195: =IFERROR(IF(Standaard,J195/CalPerPond,J195/CalPerPond/2.2),"") ->  | L195: =IFERROR(Gewichtsverandering-K195,"") ->  | M195: =IFERROR(IF(B194<>"",L195/(Gewichtsverandering),""),"") -> 
E196: =IFERROR(IF($D196<>"",E195+(I195/CalPerPond)*IF(Doelgewicht="TOENAME",1,-1),""),"") ->  | F196: =IFERROR(LopendeBMR,"") ->  | G196: =IFERROR(IF(K195>0,F195*Activiteitsfactor+IF(Doelgewicht="Aanhouden",0,IF(Doelgewicht="AFNEEMT",-500,IF(Doelgewicht="TOENAME",500))),""),"") ->  | H196: =IFERROR(F196*(Activiteitsfactor),"") ->  | I196: =IFERROR(IF(Doelgewicht="TOENAME",G196-H196,H196-G196),"") ->  | K196: =IFERROR(IF(Standaard,J196/CalPerPond,J196/CalPerPond/2.2),"") ->  | L196: =IFERROR(Gewichtsverandering-K196,"") ->  | M196: =IFERROR(IF(B195<>"",L196/(Gewichtsverandering),""),"") -> 
E197: =IFERROR(IF($D197<>"",E196+(I196/CalPerPond)*IF(Doelgewicht="TOENAME",1,-1),""),"") ->  | F197: =IFERROR(LopendeBMR,"") ->  | G197: =IFERROR(IF(K196>0,F196*Activiteitsfactor+IF(Doelgewicht="Aanhouden",0,IF(Doelgewicht="AFNEEMT",-500,IF(Doelgewicht="TOENAME",500))),""),"") ->  | H197: =IFERROR(F197*(Activiteitsfactor),"") ->  | I197: =IFERROR(IF(Doelgewicht="TOENAME",G197-H197,H197-G197),"") ->  | K197: =IFERROR(IF(Standaard,J197/CalPerPond,J197/CalPerPond/2.2),"") ->  | L197: =IFERROR(Gewichtsverandering-K197,"") ->  | M197: =IFERROR(IF(B196<>"",L197/(Gewichtsverandering),""),"") -> 
E198: =IFERROR(IF($D198<>"",E197+(I197/CalPerPond)*IF(Doelgewicht="TOENAME",1,-1),""),"") ->  | F198: =IFERROR(LopendeBMR,"") ->  | G198: =IFERROR(IF(K197>0,F197*Activiteitsfactor+IF(Doelgewicht="Aanhouden",0,IF(Doelgewicht="AFNEEMT",-500,IF(Doelgewicht="TOENAME",500))),""),"") ->  | H198: =IFERROR(F198*(Activiteitsfactor),"") ->  | I198: =IFERROR(IF(Doelgewicht="TOENAME",G198-H198,H198-G198),"") ->  | K198: =IFERROR(IF(Standaard,J198/CalPerPond,J198/CalPerPond/2.2),"") ->  | L198: =IFERROR(Gewichtsverandering-K198,"") ->  | M198: =IFERROR(IF(B197<>"",L198/(Gewichtsverandering),""),"") -> 
E199: =IFERROR(IF($D199<>"",E198+(I198/CalPerPond)*IF(Doelgewicht="TOENAME",1,-1),""),"") ->  | F199: =IFERROR(LopendeBMR,"") ->  | G199: =IFERROR(IF(K198>0,F198*Activiteitsfactor+IF(Doelgewicht="Aanhouden",0,IF(Doelgewicht="AFNEEMT",-500,IF(Doelgewicht="TOENAME",500))),""),"") ->  | H199: =IFERROR(F199*(Activiteitsfactor),"") ->  | I199: =IFERROR(IF(Doelgewicht="TOENAME",G199-H199,H199-G199),"") ->  | K199: =IFERROR(IF(Standaard,J199/CalPerPond,J199/CalPerPond/2.2),"") ->  | L199: =IFERROR(Gewichtsverandering-K199,"") ->  | M199: =IFERROR(IF(B198<>"",L199/(Gewichtsverandering),""),"") -> 
E200: =IFERROR(IF($D200<>"",E199+(I199/CalPerPond)*IF(Doelgewicht="TOENAME",1,-1),""),"") ->  | F200: =IFERROR(LopendeBMR,"") ->  | G200: =IFERROR(IF(K199>0,F199*Activiteitsfactor+IF(Doelgewicht="Aanhouden",0,IF(Doelgewicht="AFNEEMT",-500,IF(Doelgewicht="TOENAME",500))),""),"") ->  | H200: =IFERROR(F200*(Activiteitsfactor),"") ->  | I200: =IFERROR(IF(Doelgewicht="TOENAME",G200-H200,H200-G200),"") ->  | K200: =IFERROR(IF(Standaard,J200/CalPerPond,J200/CalPerPond/2.2),"") ->  | L200: =IFERROR(Gewichtsverandering-K200,"") ->  | M200: =IFERROR(IF(B199<>"",L200/(Gewichtsverandering),""),"") -> 
E201: =IFERROR(IF($D201<>"",E200+(I200/CalPerPond)*IF(Doelgewicht="TOENAME",1,-1),""),"") ->  | F201: =IFERROR(LopendeBMR,"") ->  | G201: =IFERROR(IF(K200>0,F200*Activiteitsfactor+IF(Doelgewicht="Aanhouden",0,IF(Doelgewicht="AFNEEMT",-500,IF(Doelgewicht="TOENAME",500))),""),"") ->  | H201: =IFERROR(F201*(Activiteitsfactor),"") ->  | I201: =IFERROR(IF(Doelgewicht="TOENAME",G201-H201,H201-G201),"") ->  | K201: =IFERROR(IF(Standaard,J201/CalPerPond,J201/CalPerPond/2.2),"") ->  | L201: =IFERROR(Gewichtsverandering-K201,"") ->  | M201: =IFERROR(IF(B200<>"",L201/(Gewichtsverandering),""),"") -> 
E202: =IFERROR(IF($D202<>"",E201+(I201/CalPerPond)*IF(Doelgewicht="TOENAME",1,-1),""),"") ->  | F202: =IFERROR(LopendeBMR,"") ->  | G202: =IFERROR(IF(K201>0,F201*Activiteitsfactor+IF(Doelgewicht="Aanhouden",0,IF(Doelgewicht="AFNEEMT",-500,IF(Doelgewicht="TOENAME",500))),""),"") ->  | H202: =IFERROR(F202*(Activiteitsfactor),"") ->  | I202: =IFERROR(IF(Doelgewicht="TOENAME",G202-H202,H202-G202),"") ->  | K202: =IFERROR(IF(Standaard,J202/CalPerPond,J202/CalPerPond/2.2),"") ->  | L202: =IFERROR(Gewichtsverandering-K202,"") ->  | M202: =IFERROR(IF(B201<>"",L202/(Gewichtsverandering),""),"") -> 
... 798 more rows

Sheet Bewegingstype opzoeken (hidden)
B1: BEWEGINGSTYPE OPZOEKEN
B2: Dit blad moet verborgen blijven.
B3: TYPE OEFENING | C3: BESCHRIJVING | D3: FACTOR
B4: SEDENTAIR | C4: WEINIG TOT GEEN OEFENING | D4: 1.2
B5: LICHTE ACTIVITEIT | C5: OEFENINGEN 1-2 DAGEN/WEEK | D5: 1.375
B6: GEMIDDELDE ACTIVITEIT | C6: OEFENINGEN 3-5 DAGEN/WEEK | D6: 1.55
B7: ZEER ACTIEF | C7: OEFENINGEN 6-7 DAGEN/WEEK | D7: 1.725
B8: EXTRA ACTIEF | C8: OEFENINGEN 6-7 DAGEN/WEEK + FYSIEKE BAAN/2X TRAINING | D8: 1.9
